Cogmind - Beta 11.1 --- EXPLORER MODE // 2022.06.29 @ 18:36:00 // Winter2019/RPGLIKE Player: Grimbling Result: Destroyed Tau Ceti IV! Performance ------------- Evolutions (9) 4500 Regions Visited (33) 6600 Robots Destroyed (472) 2360 Value Destroyed (28070) 28070 Prototype IDs (283) 5660 Alien Tech Used (8) 1600 Bonus (45906) 45906 TOTAL SCORE: 94696 Bonus ------- High Alert Combat Kills 3092 Follower Combat Kills 938 Network Hubs Disabled 800 Met Zhirov 300 Met Warlord at Base 500 MAIN.C Attacked Warlord 500 Built Enhanced Grunts 300 Met R17 at Cetus 500 Hacked Protovariant 500 Met Warlord at Research 2000 Scanned by Researcher 500 Pursued by Intercept 2000 Acquired SGEMP 2000 Delivered SGEMP 2000 Destroyed MAIN.C Guards 500 Met MAIN.C 5000 Destroyed MAIN.C Shell 5000 Zhirov Destroyed MAIN.C 3000 Met Warlord at Command 2000 Met Architect 300 Started Test 138-B 500 Started Test 138-C 8000 Destroyed A8 300 Destroyed A6 400 Destroyed A5 500 Destroyed A4 700 Destroyed A3 800 Destroyed A2 1000 Win 3000 Friendly Fire -1024 Cogmind --------- Core Integrity 1200/1200 Matter 171/425 Energy 960/960 System Corruption 1% Temperature Cool (0) Movement Hovering (20) Location Subspace Parts ------- > --- POWER (4) -------- Graviton Reactor Graviton Reactor Graviton Reactor Zero-point Reactor > --- PROPULSION (8) --- Cooled Gravmag System Improved Linear Gravjet Improved Linear Gravjet Improved Linear Gravjet Cooled Linear Gravjet Cooled Linear Gravjet Combat Linear Gravjet Combat Linear Gravjet > --- UTILITY (10) ----- Experimental Signal Interpreter Experimental Core Analyzer Improved Particle Accelerator Experimental Weapon Cycler Experimental Phase Shifter Improved Powered Armor Graphene Brace Experimental Focal Shield Experimental Thermal Shield Improved Energy Mantle > --- WEAPON (4) ------- Heavy Gatling Laser Heavy Gatling Laser Heavy Gatling Laser Heavy Gatling Laser > --- INVENTORY (7) ---- Protomatter-47 High-powered Transdimensional Reconstructor Advanced Datajack Enhanced Force Lance Peak State ------------ > --- POWER ------------ Graviton Reactor Graviton Reactor Graviton Reactor Zero-point Reactor > --- PROPULSION ------- Cooled Gravmag System Improved Linear Gravjet Improved Linear Gravjet Improved Linear Gravjet Cooled Linear Gravjet Cooled Linear Gravjet Combat Linear Gravjet Combat Linear Gravjet > --- UTILITY ---------- Experimental Signal Interpreter Long-range Terrain Scanner Experimental Core Analyzer Improved Particle Accelerator Experimental Weapon Cycler Experimental Phase Shifter Improved Powered Armor Graphene Brace Experimental Focal Shield Improved Energy Mantle > --- WEAPON ----------- Heavy Gatling Laser Heavy Gatling Laser Heavy Hardcell Cannon > --- INVENTORY -------- Protomatter Experimental Thermal Shield High-powered Transdimensional Reconstructor Heavy Gatling Laser Heavy Gatling Laser Advanced Datajack Enhanced Force Lance [Rating: 225] Favorites ----------- Power Compact Particle Reactor Engine Improved Ion Engine Power Core Fission Core Reactor Compact Particle Reactor Propulsion Gravmag System Leg Aluminum Leg Hover Unit Gravmag System Utility Improved Powered Armor Device Particle Accelerator Storage Matter Compressor Processor Advanced Signal Interpreter Protection Improved Powered Armor Weapon Heavy Gatling Laser Energy Gun Heavy Gatling Laser Energy Cannon Heavy Disruptor Cannon Ballistic Gun Advanced KE Penetrator Ballistic Cannon Heavy Hardcell Cannon Launcher Point Singularity Launcher Slashing Weapon Centrium Greatsword Piercing Weapon Enhanced Force Lance Special Melee Weapon Advanced Datajack Build | -11 -10 -10 -9 -9 -9 -8 -8 -7 -6 -6 -6 -6 -6 -6 -6 -5 -5 -5 -5 -4 -4 -4 -4 -4 -3 -3 -3 -3 -2 -2 -1 -1 -1 ------- Run | Scr Mat Min Mat Min Exi Min Mat Fac Fac Was Fac Ext Cet Arc Hub Fac Upp Upp Zhi Pro Fac Upp Upp War Pro Res Qua Sec Res Tes Acc Com Ac0 Slots Evolved 22 | 3 . 2 2 . . 1 . 4 . . 3 . 1 . . 1 . . . 1 . . 1 . . . . 1 . 1 . 1 . Power 3 | . . . 1 . . . . 1 . . . . . . . . . . . . . . 1 . . . . . . . . . . Propulsion 7 | 1 . . 1 . . . . 1 . . 2 . 1 . . 1 . . . . . . . . . . . . . . . . . Utility 9 | 2 . . . . . 1 . 1 . . 1 . . . . . . . . 1 . . . . . . . 1 . 1 . 1 . Weapon 3 | . . 2 . . . . . 1 . . . . . . . . . . . . . . . . . . . . . . . . . Parts Attached 301 | 7 2 3 4 1 2 . 4 23 . 1 16 8 5 3 9 10 3 1 9 2 10 1 3 8 . 5 15 39 4 29 11 31 32 Power 42 | 1 . . 2 . . . . 5 . 1 4 . 2 . 1 2 . . 1 . 2 . 2 3 . . 1 4 2 1 . 5 3 Engine 9 | 1 . . 2 . . . . 2 . . 3 . . . . 1 . . . . . . . . . . . . . . . . . Core 5 | . . . . . . . . 3 . 1 1 . . . . . . . . . . . . . . . . . . . . . . Reactor 28 | . . . . . . . . . . . . . 2 . 1 1 . . 1 . 2 . 2 3 . . 1 4 2 1 . 5 3 Propulsion 40 | 2 1 . . 1 . . . 8 . . 3 . . 3 . 3 . . 4 . 2 . 1 . . . 2 . 2 4 1 . 3 Treads . | . . . . . . . . . . . . . . . . . . . . . . . . . . . . . . . . . . Leg 8 | 2 1 . . 1 . . . 4 . . . . . . . . . . . . . . . . . . . . . . . . . Wheel . | . . . . . . . . . . . . . . . . . . . . . . . . . . . . . . . . . . Hover 32 | . . . . . . . . 4 . . 3 . . 3 . 3 . . 4 . 2 . 1 . . . 2 . 2 4 1 . 3 Flight . | . . . . . . . . . . . . . . . . . . . . . . . . . . . . . . . . . . Utility 111 | 3 . 1 1 . 2 . 1 3 . . 3 6 2 . 3 4 3 1 4 2 2 1 . 3 . 5 5 25 . 10 6 9 6 Device 92 | 2 . 1 . . . . 1 2 . . 1 5 . . 2 4 2 1 4 2 2 1 . 3 . 5 5 24 . 6 5 9 5 Storage 3 | . . . . . 1 . . . . . 1 1 . . . . . . . . . . . . . . . . . . . . . Processor 6 | . . . . . . . . 1 . . . . . . 1 . . . . . . . . . . . . 1 . 1 1 . 1 Hackware . | . . . . . . . . . . . . . . . . . . . . . . . . . . . . . . . . . . Protection 10 | 1 . . 1 . 1 . . . . . 1 . 2 . . . 1 . . . . . . . . . . . . 3 . . . Artifact . | . . . . . . . . . . . . . . . . . . . . . . . . . . . . . . . . . . Weapon 108 | 1 1 2 1 . . . 3 7 . . 6 2 1 . 5 1 . . . . 4 . . 2 . . 7 10 . 14 4 17 20 Energy Gun 74 | 1 1 2 1 . . . 2 7 . . 5 2 1 . 5 1 . . . . 4 . . 2 . . 5 7 . 8 2 8 10 Energy Cannon 2 | . . . . . . . . . . . 1 . . . . . . . . . . . . . . . 1 . . . . . . Ballistic Gun 2 | . . . . . . . . . . . . . . . . . . . . . . . . . . . . . . . . . 2 Ballistic Cannon 1 | . . . . . . . . . . . . . . . . . . . . . . . . . . . . . . . . . 1 Launcher 1 | . . . . . . . . . . . . . . . . . . . . . . . . . . . . . . . . . 1 Special Weapon . | . . . . . . . . . . . . . . . . . . . . . . . . . . . . . . . . . . Impact Weapon . | . . . . . . . . . . . . . . . . . . . . . . . . . . . . . . . . . . Slashing Weapon 2 | . . . . . . . . . . . . . . . . . . . . . . . . . . . . 1 . . . . 1 Piercing Weapon 18 | . . . . . . . . . . . . . . . . . . . . . . . . . . . 1 2 . 6 2 4 3 Special Melee Weapon 8 | . . . . . . . 1 . . . . . . . . . . . . . . . . . . . . . . . . 5 2 Unidentified Prototypes 45 | . . . . . . . . 2 . . 5 1 1 . 1 1 1 . 3 . 1 . . 4 . 1 2 12 2 7 . . 1 Parts Lost 3 | . . . . . . . . 1 . . 2 . . . . . . . . . . . . . . . . . . . . . . Power . | . . . . . . . . . . . . . . . . . . . . . . . . . . . . . . . . . . Propulsion 1 | . . . . . . . . . . . 1 . . . . . . . . . . . . . . . . . . . . . . Utility 1 | . . . . . . . . 1 . . . . . . . . . . . . . . . . . . . . . . . . . Weapon 1 | . . . . . . . . . . . 1 . . . . . . . . . . . . . . . . . . . . . . Highest Loss Streak 1 | . . . . . . . . 1 . . 1 . . . . . . . . . . . . . . . . . . . . . . To Critical Strikes . | . . . . . . . . . . . . . . . . . . . . . . . . . . . . . . . . . . Average Slot Usage (%) 97 | . 99 96 90 94 99 91 94 96 87 93 95 99 95 98 95 98 100 100 100 98 99 100 95 99 100 100 99 99 100 98 99 98 99 Engine 4 | . 14 12 13 18 18 16 16 12 6 6 7 10 4 . . . . . . . . . . . . . . . . . . . . Core 1 | . . . . . . . . 6 6 12 8 5 5 5 1 . . . . . . . . . . . . . . . . . . Reactor 9 | . . . . . . . . . . . . . 5 10 13 14 14 14 14 13 13 13 13 17 17 17 17 16 16 16 16 14 15 Leg 5 | . 27 24 19 21 27 25 25 23 . . . . . . . . . . . . . . . . . . . . . . . . . Hover 24 | . . . . . . . . . 25 25 26 31 30 33 35 37 38 38 38 36 36 36 34 34 34 34 34 33 33 32 31 30 30 Device 21 | . 28 24 19 18 18 16 19 20 18 18 16 14 15 15 15 18 19 19 19 20 22 22 21 20 21 21 20 22 25 26 27 28 27 Processor 3 | . . . . . . . . . 6 6 5 5 5 5 5 4 4 4 4 4 4 4 4 4 4 4 4 5 4 4 4 3 5 Protection 5 | . 14 12 9 9 8 8 8 6 . . 4 5 5 5 5 4 4 4 4 4 4 4 4 4 4 4 4 4 4 3 4 3 3 Energy Gun 18 | . 14 23 28 27 27 25 23 24 25 25 22 21 20 20 19 18 19 19 19 18 17 18 17 17 17 17 14 13 16 14 15 12 13 Naked Turns . | . . . . . . . . . . . . . . . . . . . . . . . . . . . . . . . . . . Heaviest Build 129 | 12 12 16 25 25 25 25 31 46 35 42 67 69 69 69 73 76 85 86 86 87 94 97 109 104 101 101 109 109 110 113 113 129 122 Greatest Support 124 | 20 20 20 30 43 43 43 43 91 56 56 72 72 72 83 83 93 93 93 101 101 103 102 105 105 105 105 109 109 112 124 123 123 123 Greatest Overweight (x) 3 | . . . . . . . . 1 . . 1 . . . . . . . . . . . 1 . . . . 1 . 3 1 1 . Average Overweight (x) . | . . . . . . . . . . . . . . . . . . . . . . . . . . . . . . . . . . Largest Inventory Capacity 7 | 3 3 3 3 3 3 3 3 3 3 3 3 4 4 4 5 5 5 5 5 5 5 5 5 5 5 5 6 6 6 6 7 7 7 Average Capacity 4 | 3 3 3 3 3 3 3 3 3 3 3 3 3 4 4 4 5 5 5 5 5 5 5 5 5 5 5 5 6 6 6 6 7 7 Most Carried 7 | . 2 2 3 2 3 2 3 3 3 1 3 4 4 4 5 5 5 5 5 5 5 5 5 5 5 5 6 6 6 6 7 7 7 Average Carried 4 | . . . 1 1 2 2 2 2 1 1 1 2 3 3 3 2 3 4 4 4 4 4 5 4 5 4 4 5 5 5 5 6 6 Final Capacity 7 | 3 3 3 3 3 3 3 3 3 3 3 3 4 4 4 5 5 5 5 5 5 5 5 5 5 5 5 6 6 6 6 7 7 7 Final Carried 7 | . 2 . 2 2 2 2 3 3 1 1 3 3 4 4 2 4 5 5 5 5 5 5 5 5 5 4 5 6 6 5 7 5 4 Class Distribution -------------------- 34% | Generator-Scout 22% | Hacker-Scout 19% | Hacker-Skirmisher 13% | Scavenger-Scout 4% | Hacker-Mutant Dominant Class ---------------- Hacker-Mutant | -10/Materials Hacker-Skirmisher | -10/Mines Hacker-Skirmisher | -9/Materials Hacker-Skirmisher | -9/Mines Hacker-Skirmisher | -9/Exiles Hacker-Skirmisher | -8/Mines Hacker-Skirmisher | -8/Materials Hacker-Skirmisher | -7/Factory Hacker-Scout | -6/Factory Hacker-Scout | -6/Waste Hacker-Scout | -6/Factory Generator-Scout | -6/Extension Hacker-Scout | -6/Cetus Scavenger-Scout | -6/Archives Scavenger-Scout | -6/Hub_04(d) Scavenger-Scout | -5/Factory Scavenger-Scout | -5/Upper Caves Scavenger-Scout | -5/Upper Caves Generator-Scout | -5/Zhirov Scavenger-Scout | -4/Proximity Caves Hacker-Scout | -4/Factory Hacker-Scout | -4/Upper Caves Hacker-Scout | -4/Upper Caves Hacker-Scout | -4/Warlord Hacker-Scout | -3/Proximity Caves Hacker-Scout | -3/Research Hacker-Scout | -3/Quarantine Generator-Scout | -3/Section 7 Generator-Scout | -2/Research Generator-Scout | -2/Testing Generator-Scout | -1/Access Generator-Scout | -1/Command Generator-Scout | -1/Access_0 Resources | -11 -10 -10 -9 -9 -9 -8 -8 -7 -6 -6 -6 -6 -6 -6 -6 -5 -5 -5 -5 -4 -4 -4 -4 -4 -3 -3 -3 -3 -2 -2 -1 -1 -1 ----------- Run | Scr Mat Min Mat Min Exi Min Mat Fac Fac Was Fac Ext Cet Arc Hub Fac Upp Upp Zhi Pro Fac Upp Upp War Pro Res Qua Sec Res Tes Acc Com Ac0 Matter Collected 3341 | 270 17 30 . 50 . 10 10 221 80 . 313 248 95 42 127 100 30 10 91 29 94 6 40 . 76 54 140 520 20 152 35 181 250 Remotely . | . . . . . . . . . . . . . . . . . . . . . . . . . . . . . . . . . . Salvage Created 21079 | 297 303 93 10 150 . 372 50 1003 . . 865 785 727 487 2296 655 391 253 151 238 626 . 186 . 76 200 934 2541 245 1833 2607 1009 1696 Parts 739 | 25 11 12 6 7 . 6 4 45 . . 37 48 21 20 70 16 12 7 8 11 26 8 6 . 8 10 35 82 9 57 63 33 36 Haulers Intercepted 27 | . 1 . . . . . 1 1 . . 2 . . . 5 1 1 . . . . . . . . 1 2 6 1 1 4 . . Recyclers Shooed 2 | . . . . . . . . 1 . . . . . . . . . . . . . . . . . . 1 . . . . . . Parts Field Recycled . | . . . . . . . . . . . . . . . . . . . . . . . . . . . . . . . . . . Retrieved Matter . | . . . . . . . . . . . . . . . . . . . . . . . . . . . . . . . . . . Parts Self-Destructed . | . . . . . . . . . . . . . . . . . . . . . . . . . . . . . . . . . . Prevented . | . . . . . . . . . . . . . . . . . . . . . . . . . . . . . . . . . . Kills | -11 -10 -10 -9 -9 -9 -8 -8 -7 -6 -6 -6 -6 -6 -6 -6 -5 -5 -5 -5 -4 -4 -4 -4 -4 -3 -3 -3 -3 -2 -2 -1 -1 -1 ------- Run | Scr Mat Min Mat Min Exi Min Mat Fac Fac Was Fac Ext Cet Arc Hub Fac Upp Upp Zhi Pro Fac Upp Upp War Pro Res Qua Sec Res Tes Acc Com Ac0 Combat Hostiles Destroyed 336 | . 6 4 3 3 . 4 . 23 . . 13 23 12 2 29 8 7 2 . 5 8 3 5 . 4 1 8 44 2 25 33 18 41 Guns 293 | . 6 3 3 3 . 3 . 22 . . 10 19 11 2 28 6 4 1 . 5 7 3 5 . 4 1 8 40 2 22 27 15 33 Classes Destroyed 20 | 3 4 1 2 . . 1 . 3 . . . 2 . . 1 . . . . . . . . . . . . 2 . 1 . . . Worker 19 | 2 . . . 1 . . . 3 . . 2 . . . 4 . . . . . . . . . . 2 . 1 . 2 1 1 . Builder 9 | . . 1 . . . . . . . . 2 . . . 2 . . . . . . . . . . 1 1 . . 1 1 . . Tunneler 11 | 8 . . . . . 1 . 1 . . . . . . 1 . . . . . . . . . . . . . . . . . . Hauler 27 | . 1 . . . . . 1 1 . . 2 . . . 5 1 1 . . . . . . . . 1 2 6 1 1 4 . . Recycler 13 | 1 . . . 1 . 1 . 2 . . . 1 . . 1 . . . . . 1 . . . . . 2 1 . . 1 1 . Operator 24 | . . . 1 . . . . 1 . . . . . 9 2 3 . . . . 2 . . . . 1 . 2 2 1 . . . Watcher 34 | . 2 . . . . . . 2 . . 3 3 . . 5 . . . . . 1 . . . . 1 3 4 2 2 6 . . Swarmer 56 | . 4 2 2 3 . . . 6 . . 3 2 1 . 6 . . . . 3 . . . . 4 . 4 . . . 5 11 . Grunt 84 | . 2 2 . . . 3 . 9 . . 7 8 4 . 5 4 5 2 . . 1 2 2 . . . 1 13 . 8 6 . . Brawler 7 | . . . . . . 1 . . . . . 3 . . . . . . . . . 1 . . . . . 1 . 1 . . . Duelist 3 | . . . . . . . . . . . . 1 . . 1 . . . . . . . . . . . . . . . 1 . . Protector 2 | . . . . . . . . . . . . . . . 2 . . . . . . . . . . . . . . . . . . Researcher 3 | . . . . . . . . . . . . . . . . . . . . . . . . . . . . 2 . 1 . . . Sentry 45 | . . . 1 . . . . 1 . . 2 4 . 2 6 4 1 . . . 5 . 1 . . 1 3 7 2 . 3 2 . Specialist 3 | . . . . . . . . 1 . . . . . . . . . . . . . . . . . . . . . 2 . . . Hunter 31 | . . . . . . . . 3 . . . 3 2 . 3 . . . . 2 2 . 2 . . . . 6 . 2 6 . . Programmer 18 | . . . . . . . . 3 . . 1 . . . . . . . . . . . . . . . . 7 . 3 4 . . Behemoth 8 | . . . . . . . . . . . . 2 . . . . 1 . . . . . . . . . . 1 . . 3 1 . Cetus Guard 5 | . . . . . . . . . . . . . 5 . . . . . . . . . . . . . . . . . . . . S7 Guard 1 | . . . . . . . . . . . . . . . . . . . . . . . . . . . . 1 . . . . . M Guard 2 | . . . . . . . . . . . . . . . . . . . . . . . . . . . . . . . . 2 . Enhanced Grunt 26 | . . . . . . . . . . . . . . . . . . . . . . . . . . . . . . . . . 26 Enhanced Sentry 2 | . . . . . . . . . . . . . . . . . . . . . . . . . . . . . . . . . 2 Enhanced Hunter 8 | . . . . . . . . . . . . . . . . . . . . . . . . . . . . . . . . . 8 Lightning 6 | . . . . . . . . . . . . . . . 6 . . . . . . . . . . . . . . . . . . Tracker 11 | . . . . . . . . . . . . . . . . . . . . . . . . . . . . 3 . 4 4 . . Combat Programmer 8 | . . . . . . . . . . . . . . . . . . . . . . . . . . . . 3 . 2 1 2 . Investigator 1 | . . . . . . . . . . . . . . . . . . . . . . . . . . . . . . 1 . . . Striker 2 | . . . . . . . . . . . . . . . . . . . . . . . . . . . . . . 2 . . . Alpha 7 3 | . . . . . . . . . . . . . . . . . . . . . . . . . . . . 2 . 1 . . . Decomposer 1 | . . . . . . . . . . . . . . . . . . . . . . . 1 . . . . . . . . . . Best Kill Streak 20 | 7 4 2 2 3 . 6 1 8 . . 4 5 5 8 8 3 6 2 . 3 3 3 5 . 4 5 9 11 3 18 20 10 6 Combat Bots Only 16 | . 4 2 2 3 . 4 . 6 . . 4 5 5 2 8 2 5 2 . 3 3 3 5 . 4 1 5 9 1 16 9 8 6 Max Kills in Single Turn 3 | 1 1 1 2 2 . 1 1 2 . . 2 2 2 1 3 1 1 1 . 1 1 1 1 . 2 2 2 2 1 2 2 2 1 Gunslinging 1 | . . . 1 1 . . . 1 . . 1 1 1 . 1 . . . . . . . . . . . . 1 . 1 1 1 . Exploded . | . . . . . . . . . . . . . . . . . . . . . . . . . . . . . . . . . . Melee . | . . . . . . . . . . . . . . . . . . . . . . . . . . . . . . . . . . Uniques/NPCs Destroyed 6 | . . . . . . . . . . . . . 1 . . . . . . . . . . . . . . . . . . . 5 Revision 17 (-6/Cetus) A8 (-1/Access_0) A5 (-1/Access_0) A4 (-1/Access_0) A3 (-1/Access_0) A2 (-1/Access_0) Combat | -11 -10 -10 -9 -9 -9 -8 -8 -7 -6 -6 -6 -6 -6 -6 -6 -5 -5 -5 -5 -4 -4 -4 -4 -4 -3 -3 -3 -3 -2 -2 -1 -1 -1 -------- Run | Scr Mat Min Mat Min Exi Min Mat Fac Fac Was Fac Ext Cet Arc Hub Fac Upp Upp Zhi Pro Fac Upp Upp War Pro Res Qua Sec Res Tes Acc Com Ac0 Damage Taken 10087 | . 157 85 33 10 . 104 . 1407 . . 334 454 235 106 1475 93 269 . . 41 15 32 45 . 22 4 468 645 . 536 340 649 2528 Core 7133 | . 103 58 28 8 . 76 . 1023 . . 227 315 171 76 1100 67 180 . . 29 10 18 29 . 9 1 294 407 . 351 215 474 1864 Absorbed by Shields 6790 | . . . . . . . . 864 . . 214 195 174 40 554 36 106 . . 19 6 38 51 . 24 5 467 513 . 376 291 394 2423 Redirected to Core 6198 | . 68 39 18 8 . 64 . 886 . . 211 294 156 76 1030 60 180 . . 23 10 18 25 . 9 1 275 363 . 329 183 380 1492 Core Remaining (%) 90 | 100 . 100 . . . 100 100 10 . . . . . . 82 . . . . 100 . . . . 100 . . 99 . 100 . . 100 Volleys Fired 963 | 33 38 11 8 5 . 13 2 52 . . 31 40 24 20 74 16 14 4 26 7 16 5 6 1 3 5 80 82 7 34 51 38 217 Largest 4 | 1 1 3 3 3 . 3 3 4 . . 4 4 4 4 4 4 4 4 1 4 4 4 4 1 4 4 4 4 4 4 4 4 4 Hottest 400 | 50 50 150 150 150 . 150 150 264 . . 299 310 310 310 330 325 321 321 81 321 400 400 400 40 400 400 400 400 400 400 400 400 400 Shots Fired 3256 | 33 38 21 24 15 . 39 6 197 . . 124 149 89 80 291 64 56 16 26 28 64 20 24 1 12 20 268 267 28 133 200 147 776 Gun 3253 | 33 38 21 24 15 . 39 6 197 . . 124 149 89 80 291 64 56 16 26 28 64 20 24 1 12 20 268 267 28 133 200 147 773 Cannon . | . . . . . . . . . . . . . . . . . . . . . . . . . . . . . . . . . . Launcher 3 | . . . . . . . . . . . . . . . . . . . . . . . . . . . . . . . . . 3 Special . | . . . . . . . . . . . . . . . . . . . . . . . . . . . . . . . . . . Kinetic 40 | . . . . . . . . . . . . . . . . . . . . . . . . . . . . . . . . . 40 Thermal 3212 | 33 38 21 24 15 . 39 6 197 . . 124 149 89 80 291 64 56 16 26 28 64 20 24 . 12 20 268 267 28 133 200 147 733 Explosive 3 | . . . . . . . . . . . . . . . . . . . . . . . . . . . . . . . . . 3 Electromagnetic . | . . . . . . . . . . . . . . . . . . . . . . . . . . . . . . . . . . Entropic 1 | . . . . . . . . . . . . . . . . . . . . . . . . 1 . . . . . . . . . Robot Hit Streak 88 | 12 12 14 10 7 . 30 3 27 . . 41 53 34 33 88 57 59 31 22 14 54 24 35 . 19 26 62 65 26 46 46 42 62 Robot Miss Streak 4 | 1 1 1 4 2 . 1 1 2 . . 1 2 3 1 4 1 2 1 1 2 1 1 1 . 2 1 2 2 1 3 3 2 3 Penetration Max . | . . . . . . . . . . . . . . . . . . . . . . . . . . . . . . . . . . Secondary Targets 36 | . . . 1 1 . 2 . 4 . . 1 2 2 . 4 . 1 . . . . . . . 2 . 1 5 . 3 3 3 1 Max Gunslinging Chain 1 | . . . 1 1 . 1 . 1 . . 1 1 1 . 1 . 1 . . . . . . . 1 . 1 1 . 1 1 1 1 Shots Hit Robots 2898 | 29 33 16 17 10 . 34 3 150 . . 100 127 79 48 235 55 53 15 24 19 47 16 22 . 10 18 260 253 27 123 185 177 713 Core Hits 1996 | 12 13 7 6 6 . 13 2 58 . . 34 71 52 37 160 37 27 9 10 13 36 9 16 . 8 15 184 193 19 106 125 108 610 Critical Kills . | . . . . . . . . . . . . . . . . . . . . . . . . . . . . . . . . . . Critical Parts Destroyed . | . . . . . . . . . . . . . . . . . . . . . . . . . . . . . . . . . . Critical Strikes 60 | 4 1 3 4 . . 4 . 5 . . 13 5 . 2 7 3 . . . . . . . . . . . . . . . 9 . Burn 51 | 4 1 3 4 . . 4 . 5 . . 13 5 . 2 7 3 . . . . . . . . . . . . . . . . . Impale 9 | . . . . . . . . . . . . . . . . . . . . . . . . . . . . . . . . 9 . Melee Attacks 112 | . . . . . . . . . . . . . . . . . . . . . . . . . . . 2 8 . 13 6 70 13 Impact . | . . . . . . . . . . . . . . . . . . . . . . . . . . . . . . . . . . Slashing . | . . . . . . . . . . . . . . . . . . . . . . . . . . . . . . . . . . Piercing 106 | . . . . . . . . . . . . . . . . . . . . . . . . . . . 2 8 . 13 6 67 10 Sneak Attacks . | . . . . . . . . . . . . . . . . . . . . . . . . . . . . . . . . . . Combat Hostiles . | . . . . . . . . . . . . . . . . . . . . . . . . . . . . . . . . . . Follow-up Attacks . | . . . . . . . . . . . . . . . . . . . . . . . . . . . . . . . . . . Damage Inflicted 111231 | 364 441 216 224 125 . 429 39 3124 . . 2413 3568 2293 1347 7320 1842 1850 396 939 514 1758 340 821 . 265 766 5485 11821 1020 6021 8565 10015 36910 Guns 106372 | 364 417 216 224 125 . 429 39 3096 . . 2413 3568 2293 1347 6906 1842 1850 396 939 514 1758 340 821 . 265 766 5485 11821 1020 6021 8565 5622 36910 Cannons . | . . . . . . . . . . . . . . . . . . . . . . . . . . . . . . . . . . Explosions 460 | . . . . . . . . . . . . . . . 414 . . . . . . . . . . . . . . . . 46 . Melee 4347 | . . . . . . . . . . . . . . . . . . . . . . . . . . . . . . . . 4347 . Ramming 52 | . 24 . . . . . . 28 . . . . . . . . . . . . . . . . . . . . . . . . . Kinetic . | . . . . . . . . . . . . . . . . . . . . . . . . . . . . . . . . . . Thermal 106372 | 364 417 216 224 125 . 429 39 3096 . . 2413 3568 2293 1347 6906 1842 1850 396 939 514 1758 340 821 . 265 766 5485 11821 1020 6021 8565 5622 36910 Explosive 46 | . . . . . . . . . . . . . . . . . . . . . . . . . . . . . . . . 46 . Electromagnetic 414 | . . . . . . . . . . . . . . . 414 . . . . . . . . . . . . . . . . . . Impact . | . . . . . . . . . . . . . . . . . . . . . . . . . . . . . . . . . . Slashing . | . . . . . . . . . . . . . . . . . . . . . . . . . . . . . . . . . . Piercing 4347 | . . . . . . . . . . . . . . . . . . . . . . . . . . . . . . . . 4347 . Highest Corruption 21 | . 1 1 . . . . . 3 . 5 5 5 5 5 21 . . . . . . . . . . . . 3 . 7 . 6 1 Average Corruption 3 | . 1 1 . . . . . 1 . 5 5 5 5 5 9 . . . . . . . . . . . . 2 . 3 . 3 1 Corruption Purged 6 | . . . . . . . . . . . . . . . . . . . . . . . . . . . . . . . . 6 . Corruption Blocked 31 | . . . . . . . . . . . . . . . . . . . . . . . . . . . . . 31 . . . . Effects 164 | . 1 8 . . . . . 9 . . 22 25 14 6 35 . . . . . . . . . . . . 9 . 7 . 21 7 Message Errors 42 | . . 4 . . . . . 1 . . 4 8 4 2 8 . . . . . . . . . . . . 2 . 1 . 7 1 Matter Fused 32 | . . . . . . . . 3 . . 3 5 7 2 5 . . . . . . . . . . . . . . 1 . 6 . Heat Flow Errors 11 | . . . . . . . . 1 . . 2 1 . 1 3 . . . . . . . . . . . . 2 . . . . 1 Energy Discharges 18 | . . 2 . . . . . 3 . . 1 . . 1 3 . . . . . . . . . . . . 2 . 3 . 2 1 Parts Rejected 4 | . 1 . . . . . . . . . . 1 1 . . . . . . . . . . . . . . . . 1 . . . Data Loss (minor) 24 | . . 1 . . . . . . . . 7 5 2 . 5 . . . . . . . . . . . . 2 . . . 1 1 Data Loss (major) 5 | . . 1 . . . . . 1 . . . 1 . . . . . . . . . . . . . . . 1 . . . . 1 Misfires 7 | . . . . . . . . . . . 2 1 . . 3 . . . . . . . . . . . . . . . . 1 . Alerts 2 | . . . . . . . . . . . 1 . . . . . . . . . . . . . . . . . . . . 1 . Weapon Failures 19 | . . . . . . . . . . . 2 3 . . 8 . . . . . . . . . . . . . . 1 . 3 2 Overload Shots . | . . . . . . . . . . . . . . . . . . . . . . . . . . . . . . . . . . Overflow Damage 422 | . . . . . . . . . . . . . . . 60 . . . . . . . . . . . . . . . . 362 . Projectiles . | . . . . . . . . . . . . . . . . . . . . . . . . . . . . . . . . . . Explosions 60 | . . . . . . . . . . . . . . . 60 . . . . . . . . . . . . . . . . . . Melee 362 | . . . . . . . . . . . . . . . . . . . . . . . . . . . . . . . . 362 . Knockbacks . | . . . . . . . . . . . . . . . . . . . . . . . . . . . . . . . . . . Impact . | . . . . . . . . . . . . . . . . . . . . . . . . . . . . . . . . . . Kinetic . | . . . . . . . . . . . . . . . . . . . . . . . . . . . . . . . . . . Secondary . | . . . . . . . . . . . . . . . . . . . . . . . . . . . . . . . . . . Self-Inflicted Damage 257 | . . . . . . . . . . . . . . . 257 . . . . . . . . . . . . . . . . . . Shots 4 | . . . . . . . . . . . . . . . 4 . . . . . . . . . . . . . . . . . . Rammed . | . . . . . . . . . . . . . . . . . . . . . . . . . . . . . . . . . . Targets Rammed 10 | . 8 . . . . . . 2 . . . . . . . . . . . . . . . . . . . . . . . . . Kicked 10 | . 8 . . . . . . 2 . . . . . . . . . . . . . . . . . . . . . . . . . Crushed . | . . . . . . . . . . . . . . . . . . . . . . . . . . . . . . . . . . Highest Temperature 438 | 160 247 . . . . 19 . 438 . . 192 300 263 355 385 138 173 84 2 80 144 240 145 . 228 36 . 122 60 72 118 343 103 Average Temperature 62 | 54 132 . . . . 5 . 46 . . 70 83 104 80 73 56 75 54 2 50 52 120 80 . 138 20 . 22 37 21 45 111 19 Received Heat Transfer 1713 | . 75 60 9 . . 99 . 273 . . 170 197 44 30 72 36 129 . . . . 22 43 . . . 69 93 . 73 15 32 172 Effects 6 | . 1 . . . . . . 2 . . . . . . 1 . . . . . . . . . . . . . . . . 2 . Shutdowns 2 | . . . . . . . . 1 . . . . . . 1 . . . . . . . . . . . . . . . . . . Energy Bleed 1 | . 1 . . . . . . . . . . . . . . . . . . . . . . . . . . . . . . . . Interference 1 | . . . . . . . . . . . . . . . . . . . . . . . . . . . . . . . . 1 . Matter Decay 1 | . . . . . . . . 1 . . . . . . . . . . . . . . . . . . . . . . . . . Damage (minor) 1 | . . . . . . . . . . . . . . . . . . . . . . . . . . . . . . . . 1 . Siege Activations . | . . . . . . . . . . . . . . . . . . . . . . . . . . . . . . . . . . Robots Corrupted . | . . . . . . . . . . . . . . . . . . . . . . . . . . . . . . . . . . Combat Hostiles . | . . . . . . . . . . . . . . . . . . . . . . . . . . . . . . . . . . Parts Fried 1 | . . . . . . . . . . . . . . . 1 . . . . . . . . . . . . . . . . . . Impact Corruptions . | . . . . . . . . . . . . . . . . . . . . . . . . . . . . . . . . . . Robots Melted 47 | . . 1 . . . 1 . 1 . . 5 5 1 . 1 2 3 1 . . 1 . . . . . . 4 . 3 7 3 8 Combat Hostiles 43 | . . 1 . . . 1 . 1 . . 3 4 1 . 1 2 3 1 . . 1 . . . . . . 4 . 3 6 3 8 Parts Melted 251 | 2 3 3 1 . . 4 . 17 . . 24 18 6 9 31 11 9 . . 3 5 . 1 . . 2 1 25 3 18 24 4 27 Heat Transferred 125558 | 1369 1295 851 962 370 . 1554 111 5941 . . 5776 6879 3618 2295 10934 3130 2794 586 813 749 2149 375 925 . 300 850 8968 13275 1150 6475 8802 4349 27913 Parts Sabotaged . | . . . . . . . . . . . . . . . . . . . . . . . . . . . . . . . . . . Parts Stolen . | . . . . . . . . . . . . . . . . . . . . . . . . . . . . . . . . . . Parts Stripped . | . . . . . . . . . . . . . . . . . . . . . . . . . . . . . . . . . . Power Chain Reactions 1 | . . . . . . . . . . . . . . . 1 . . . . . . . . . . . . . . . . . . Missiles Intercepted 5 | . . . . . . . . . . . . . . . . . . . . . . . . . . . . . . . . 5 . Alert | -11 -10 -10 -9 -9 -9 -8 -8 -7 -6 -6 -6 -6 -6 -6 -6 -5 -5 -5 -5 -4 -4 -4 -4 -4 -3 -3 -3 -3 -2 -2 -1 -1 -1 ------- Run | Scr Mat Min Mat Min Exi Min Mat Fac Fac Was Fac Ext Cet Arc Hub Fac Upp Upp Zhi Pro Fac Upp Upp War Pro Res Qua Sec Res Tes Acc Com Ac0 Peak Influence 1445 | 55 216 100 122 80 . 110 13 560 122 31 296 335 533 300 1445 741 . . . . 216 . . . . 69 288 706 242 485 1149 1099 . Initial 520 | . 26 . 1 . . . . 1 122 1 16 61 14 65 72 520 . . . . 57 . . . . 46 27 5 177 28 220 445 . Average 234 | 26 104 29 74 40 . 65 6 192 48 12 82 123 239 253 584 452 . . . . 89 . . . . 42 81 316 127 164 683 802 . Maximum Alert Level 4 | . 1 . . . . . . 2 . . 1 1 2 1 4 3 . . . . 1 . . . . . 1 3 1 2 4 3 . Low Security (%) 61 | 100 83 100 100 100 . 100 100 48 100 100 95 76 9 9 27 14 . . . . 97 . . . . 100 75 35 56 65 6 63 . Level 1 19 | . 16 . . . . . . 44 . . 4 23 82 90 6 31 . . . . 2 . . . . . 24 24 43 21 19 . . Level 2 10 | . . . . . . . . 7 . . . . 8 . 26 45 . . . . . . . . . . . 36 . 13 19 12 . Level 3 7 | . . . . . . . . . . . . . . . 30 8 . . . . . . . . . . . 4 . . 51 23 . Level 4 . | . . . . . . . . . . . . . . . 8 . . . . . . . . . . . . . . . 2 . . Level 5 . | . . . . . . . . . . . . . . . . . . . . . . . . . . . . . . . . . . High Security . | . . . . . . . . . . . . . . . . . . . . . . . . . . . . . . . . . . Max Security . | . . . . . . . . . . . . . . . . . . . . . . . . . . . . . . . . . . Squads Dispatched 55 | . . . 1 . . . . 4 1 . 4 3 1 . 9 1 . . . . 1 . . . . . 2 12 1 9 4 2 . Investigation 15 | . . . . . . . . 1 1 . 1 3 1 . 3 1 . . . . . . . . . . . 3 . 1 . . . Extermination 7 | . . . . . . . . 1 . . 1 . . . . . . . . . . . . . . . 1 2 . 2 . . . Reinforcement 9 | . . . 1 . . . . 1 . . 2 . . . 1 . . . . . . . . . . . 1 2 . . . 1 . Assault 3 | . . . . . . . . . . . . . . . 1 . . . . . . . . . . . . . . 1 . 1 . Garrison 6 | . . . . . . . . 1 . . . . . . 4 . . . . . 1 . . . . . . . . . . . . Intercept 15 | . . . . . . . . . . . . . . . . . . . . . . . . . . . . 5 1 5 4 . . Searches Triggered . | . . . . . . . . . . . . . . . . . . . . . . . . . . . . . . . . . . Construction Impeded 1 | . . . . . . . . . . . . . . . . . . . . . . . . . . . 1 . . . . . . Haulers Reinforced 3 | . . . . . . . . 1 . . 1 . . . 1 . . . . . . . . . . . . . . . . . . Active Scanning Responses . | . . . . . . . . . . . . . . . . . . . . . . . . . . . . . . . . . . Cargo Convoy Interrupts 1 | . . . . . . . . 1 . . . . . . . . . . . . . . . . . . . . . . . . . Stealth | -11 -10 -10 -9 -9 -9 -8 -8 -7 -6 -6 -6 -6 -6 -6 -6 -5 -5 -5 -5 -4 -4 -4 -4 -4 -3 -3 -3 -3 -2 -2 -1 -1 -1 --------- Run | Scr Mat Min Mat Min Exi Min Mat Fac Fac Was Fac Ext Cet Arc Hub Fac Upp Upp Zhi Pro Fac Upp Upp War Pro Res Qua Sec Res Tes Acc Com Ac0 Distress Signals 12 | . . . . . . . . 2 . . . . 2 . 2 1 . . . . . . . 3 . . . 2 . . . . . Communications Jammed 8 | . . . . . . . . . . . . . . . . . . . . . . . . . . . . . . . 8 . . Distress Signals 7 | . . . . . . . . . . . . . . . . . . . . . . . . . . . . . . . 7 . . Times Spotted 534 | . 9 4 6 3 . 4 . 42 . 4 35 24 19 9 55 14 7 . . 6 7 3 5 . 5 3 13 58 2 44 36 25 92 Peak Tracking Total 12 | . 4 2 3 1 . 4 . 8 . 4 12 6 5 2 9 3 5 . . 4 2 2 3 . 3 1 3 9 2 9 4 4 5 Tactical Retreats 11 | . . . . . . . . . . . 3 . . . 3 1 . . . . . . . . . . 1 3 . . . . . Traps | -11 -10 -10 -9 -9 -9 -8 -8 -7 -6 -6 -6 -6 -6 -6 -6 -5 -5 -5 -5 -4 -4 -4 -4 -4 -3 -3 -3 -3 -2 -2 -1 -1 -1 ------- Run | Scr Mat Min Mat Min Exi Min Mat Fac Fac Was Fac Ext Cet Arc Hub Fac Upp Upp Zhi Pro Fac Upp Upp War Pro Res Qua Sec Res Tes Acc Com Ac0 Traps Triggered 15 | . 2 . 2 . . . . 2 1 . . 3 . . . 1 . . . . . . . . . . 1 1 . 1 . 1 . Indirectly . | . . . . . . . . . . . . . . . . . . . . . . . . . . . . . . . . . . Trap Hack Attempts 43 | . . . . . . . 13 . . . . . . . . . . . . . . . . . . . . . . . . 30 . Triggered . | . . . . . . . . . . . . . . . . . . . . . . . . . . . . . . . . . . Disarmed 11 | . . . . . . . . . . . . . . . . 4 . . . . 6 . . . . . . . . . . 1 . Reprogrammed 49 | . . . . . . . 6 . . . . . . . 12 . . . . . 4 . . . . 6 . 4 . . 4 13 . Reused 6 | . . . . . . . . . . . . . . . 4 . . . . . 2 . . . . . . . . . . . . Traps Extracted . | . . . . . . . . . . . . . . . . . . . . . . . . . . . . . . . . . . Installed 4 | . . 4 . . . . . . . . . . . . . . . . . . . . . . . . . . . . . . . Triggered 18 | . . . . . . . . . . . . . . . 4 . . . . . 2 . . 12 . . . . . . . . . Machines | -11 -10 -10 -9 -9 -9 -8 -8 -7 -6 -6 -6 -6 -6 -6 -6 -5 -5 -5 -5 -4 -4 -4 -4 -4 -3 -3 -3 -3 -2 -2 -1 -1 -1 ---------- Run | Scr Mat Min Mat Min Exi Min Mat Fac Fac Was Fac Ext Cet Arc Hub Fac Upp Upp Zhi Pro Fac Upp Upp War Pro Res Qua Sec Res Tes Acc Com Ac0 Machines Disabled 86 | . . . . . . . . . . . 1 4 1 6 43 . . . 1 . 1 . . 1 . . 2 7 . 6 2 3 8 Max in Single Turn 11 | . . . . . . . . . . . 1 1 1 1 11 . . . 1 . 1 . . 1 . . 1 1 . 1 1 2 1 Garrison Access 8 | . . . . . . . . 1 . . 1 . . . . . . . . . 1 . . . . . 1 1 . 1 2 . . Phase Generator 1 | . . . . . . . . . . . . . . . . . . . . . . . . . . . . . . . . 1 . Network Hub 4 | . . . . . . . . . . . . . . . 4 . . . . . . . . . . . . . . . . . . Machines Sabotaged . | . . . . . . . . . . . . . . . . . . . . . . . . . . . . . . . . . . Garrisons Compromised . | . . . . . . . . . . . . . . . . . . . . . . . . . . . . . . . . . . Overloaded Fab Kills . | . . . . . . . . . . . . . . . . . . . . . . . . . . . . . . . . . . Hacking | -11 -10 -10 -9 -9 -9 -8 -8 -7 -6 -6 -6 -6 -6 -6 -6 -5 -5 -5 -5 -4 -4 -4 -4 -4 -3 -3 -3 -3 -2 -2 -1 -1 -1 --------- Run | Scr Mat Min Mat Min Exi Min Mat Fac Fac Was Fac Ext Cet Arc Hub Fac Upp Upp Zhi Pro Fac Upp Upp War Pro Res Qua Sec Res Tes Acc Com Ac0 Machines Accessed 120 | . 2 . 2 . . 1 4 1 2 . 8 11 2 1 11 7 . 1 4 . 7 . . 2 . 4 12 16 2 8 4 7 1 Terminals 93 | . 2 . 2 . . 1 4 . 2 . 6 11 2 . 10 6 . . . . 5 . . . . 3 9 14 2 5 2 7 . Fabricators 6 | . . . . . . . . . . . 1 . . . . 1 . . . . 1 . . . . 1 . . . 2 . . . Repair Stations . | . . . . . . . . . . . . . . . . . . . . . . . . . . . . . . . . . . Recycling Units . | . . . . . . . . . . . . . . . . . . . . . . . . . . . . . . . . . . Scanalyzers 3 | . . . . . . . . . . . . . . . . . . . . . . . . . . . 2 1 . . . . . Garrison Access 9 | . . . . . . . . 1 . . 1 . . . 1 . . . . . 1 . . . . . 1 1 . 1 2 . . Total Hacks 525 | . 8 . 6 . . 5 12 1 7 . 19 24 8 1 36 37 . 1 17 . 50 . . 2 . 18 81 77 7 42 12 47 7 Successful 317 | . 5 . 2 . . 1 9 1 5 . 11 13 5 1 17 18 . 1 17 . 37 . . 2 . 12 55 45 4 21 7 21 7 Failed 208 | . 3 . 4 . . 4 3 . 2 . 8 11 3 . 19 19 . . . . 13 . . . . 6 26 32 3 21 5 26 . Catastrophic 32 | . . . 1 . . . . . . . 2 3 1 . 2 5 . . . . 1 . . . . 1 2 5 . 4 . 5 . Database Lockouts . | . . . . . . . . . . . . . . . . . . . . . . . . . . . . . . . . . . Manual 229 | . 5 . 6 . . 5 6 . 5 . 11 10 1 1 4 10 . . . . 14 . . 2 . 4 39 54 1 25 1 25 . Terminals 445 | . 8 . 6 . . 5 12 . 7 . 15 24 8 . 34 35 . . . . 38 . . . . 17 70 73 7 31 8 47 . Fabricators 25 | . . . . . . . . . . . 2 . . . . 2 . . . . 10 . . . . 1 . . . 10 . . . Repair Stations . | . . . . . . . . . . . . . . . . . . . . . . . . . . . . . . . . . . Recycling Units . | . . . . . . . . . . . . . . . . . . . . . . . . . . . . . . . . . . Scanalyzers 13 | . . . . . . . . . . . . . . . . . . . . . . . . . . . 10 3 . . . . . Garrison Access 14 | . . . . . . . . 1 . . 2 . . . 2 . . . . . 2 . . . . . 1 1 . 1 4 . . Terminal Hacks 240 | . 5 . 2 . . 1 8 . 5 . 8 12 5 1 16 14 . 1 17 . 23 . . 2 . 10 41 32 4 8 4 14 7 Record 36 | . 1 . . . . . . . . . . . 4 1 . . . . 5 . . . . . . . 17 8 . . . . . Part Schematic 9 | . . . . . . . . . . . . . . . . . . . 4 . 1 . . . . 1 2 1 . . . . . Robot Schematic 1 | . . . . . . . . . . . . . . . . . . . . . . . . . . . . 1 . . . . . Robot Analysis 4 | . . . . . . . . . . . . . . . . . . . 4 . . . . . . . . . . . . . . Prototype ID Bank 21 | . . . . . . . 1 . . . . 1 . . 2 3 . . 4 . 1 . . . . . 4 2 . 1 . 2 . Open Door 16 | . . . . . . . . . . . 1 6 1 . . . . 1 . . . . . 2 . 1 . 3 . . 1 . . Level Access Points 6 | . . . . . . . 1 . . . . . . . . 1 . . . . 1 . . . . 1 1 . . 1 . . . Branch Access Points 10 | . 1 . . . . . 1 . 1 . 1 1 . . . 1 . . . . 1 . . . . 1 1 . 1 . . . . Emergency Access Points 13 | . . . . . . . . . . . . . . . 2 . . . . . 3 . . . . 1 2 1 . 1 . 3 . Machine Index 5 | . . . . . . . . . . . 1 . . . 1 . . . . . . . . . . . 2 . . . . 1 . Terminal Index 3 | . . . . . . . . . . . . . . . 1 . . . . . 1 . . . . . . 1 . . . . . Fabricator Index 1 | . . . . . . . . . . . . . . . . . . . . . 1 . . . . . . . . . . . . Scanalyzer Index 1 | . . . . . . . . . . . . . . . . . . . . . . . . . . . . 1 . . . . . Garrison Index 1 | . . . . . . . . . . . . . . . . . . . . . . . . . . . 1 . . . . . . Alert Level 2 | . . . . . . . . . . . . . . . . . . . . . . . . . . . 1 1 . . . . . Unreport Threat 52 | . 3 . 2 . . 1 2 . 3 . 4 3 . . 3 4 . . . . 3 . . . . 3 3 7 3 4 1 3 . Locate Traps 7 | . . . . . . . 1 . . . . . . . . 2 . . . . 2 . . . . 1 . 1 . . . . . Disarm Traps 4 | . . . . . . . . . . . . . . . . 2 . . . . 2 . . . . . . . . . . . . Reprogram Traps 19 | . . . . . . . 2 . . . . . . . 4 . . . . . 3 . . . . 1 2 2 . . 2 3 . Dispatch Records 1 | . . . . . . . . . . . . . . . . . . . . . . . . . . . 1 . . . . . . Maintenance Status 1 | . . . . . . . . . . . . . . . . . . . . . 1 . . . . . . . . . . . . Recall Investigation 3 | . . . . . . . . . . . . . . . 1 . . . . . . . . . . . . 2 . . . . . Recall Extermination 1 | . . . . . . . . . . . . . . . 1 . . . . . . . . . . . . . . . . . . Registered Components 2 | . . . . . . . . . . . . . . . . . . . . . 1 . . . . . 1 . . . . . . Registered Prototypes 1 | . . . . . . . . . . . . . . . . . . . . . . . . . . . 1 . . . . . . Zone Layout 11 | . . . . . . . . . 1 . 1 1 . . 1 1 . . . . 2 . . . . . 2 1 . . . 1 . Protovariant Controls 1 | . . . . . . . . . . . . . . . . . . . . . . . . . . . . . . 1 . . . Disengage Seal 1 | . . . . . . . . . . . . . . . . . . . . . . . . . . . . . . . . 1 . Gate Test 138-B 2 | . . . . . . . . . . . . . . . . . . . . . . . . . . . . . . . . . 2 Gate Test 138-C 2 | . . . . . . . . . . . . . . . . . . . . . . . . . . . . . . . . . 2 Gate Test 138-END 2 | . . . . . . . . . . . . . . . . . . . . . . . . . . . . . . . . . 2 Fabricator Hacks 14 | . . . . . . . . . . . . . . . . 1 . . . . 8 . . . . . . . . 4 . . 1 Network Status 1 | . . . . . . . . . . . . . . . . 1 . . . . . . . . . . . . . . . . . Load Schematic 6 | . . . . . . . . . . . . . . . . . . . . . 4 . . . . . . . . 2 . . . Build 6 | . . . . . . . . . . . . . . . . . . . . . 4 . . . . . . . . 2 . . . Repair Station Hacks . | . . . . . . . . . . . . . . . . . . . . . . . . . . . . . . . . . . Recycling Unit Hacks . | . . . . . . . . . . . . . . . . . . . . . . . . . . . . . . . . . . Scanalyzer 9 | . . . . . . . . . . . . . . . . . . . . . . . . . . . 6 3 . . . . . Insert Component 7 | . . . . . . . . . . . . . . . . . . . . . . . . . . . 4 3 . . . . . Analyze 2 | . . . . . . . . . . . . . . . . . . . . . . . . . . . 2 . . . . . . Garrison Access Hacks 8 | . . . . . . . . 1 . . 1 . . . . . . . . . 1 . . . . . 1 1 . 1 2 . . Seal Access 8 | . . . . . . . . 1 . . 1 . . . . . . . . . 1 . . . . . 1 1 . 1 2 . . Unauthorized Hacks 47 | . . . . . . . 1 . . . 2 1 . . 1 3 . . . . 5 . . . . 2 7 9 . 8 1 7 . Terminals 40 | . . . . . . . 1 . . . 1 1 . . 1 2 . . . . 4 . . . . 1 6 9 . 6 1 7 . Assimilate 8 | . . . . . . . . . . . 1 . . . 1 1 . . . . 1 . . . . 1 . 2 . . . 1 . Botnet 28 | . . . . . . . . . . . . . . . . 1 . . . . 3 . . . . . 6 7 . 4 1 6 . Operators 4 | . . . . . . . 1 . . . . 1 . . . . . . . . . . . . . . . . . 2 . . . Fabricators 6 | . . . . . . . . . . . 1 . . . . 1 . . . . 1 . . . . 1 . . . 2 . . . Prioritize 1 | . . . . . . . . . . . . . . . . . . . . . 1 . . . . . . . . . . . . Liberate 5 | . . . . . . . . . . . 1 . . . . 1 . . . . . . . . . 1 . . . 2 . . . Repair Stations . | . . . . . . . . . . . . . . . . . . . . . . . . . . . . . . . . . . Recycling Units . | . . . . . . . . . . . . . . . . . . . . . . . . . . . . . . . . . . Scanalyzers 1 | . . . . . . . . . . . . . . . . . . . . . . . . . . . 1 . . . . . . Researchers 1 | . . . . . . . . . . . . . . . . . . . . . . . . . . . 1 . . . . . . Garrison Access . | . . . . . . . . . . . . . . . . . . . . . . . . . . . . . . . . . . Data Cores Recovered 10 | . . . . . . . . . . . . . . . 1 3 . . . . 2 . . . . 1 . 1 1 1 . . . Used 4 | . . . . . . . . . . . . . . . . 1 . . . . 1 . . . . 1 . 1 . . . . . Hacking Detections 75 | . 2 . 2 . . 1 2 . 1 . 5 8 1 . 10 6 . . . . 5 . . . . 2 6 10 1 5 1 7 . Full Trace Events 12 | . . . 1 . . 1 . . 1 . 1 2 1 . 2 . . . . . . . . . . . . 2 . 1 . . . Feedback Events . | . . . . . . . . . . . . . . . . . . . . . . . . . . . . . . . . . . Feedback Blocked . | . . . . . . . . . . . . . . . . . . . . . . . . . . . . . . . . . . Robot Schematics Acquired 4 | . . . . . . . . . . . . . . . . . . . . . . . . . . . . 3 . 1 . . . Robots Built . | . . . . . . . . . . . . . . . . . . . . . . . . . . . . . . . . . . Authchips . | . . . . . . . . . . . . . . . . . . . . . . . . . . . . . . . . . . Time . | . . . . . . . . . . . . . . . . . . . . . . . . . . . . . . . . . . Total Robot Build Rating . | . . . . . . . . . . . . . . . . . . . . . . . . . . . . . . . . . . Part Schematics Acquired 20 | . . . . . . . . . . . . . . . . . . . 4 . 1 . . . . 1 4 8 . 2 . . . Parts Built 7 | . . . . . . . . . . . . . . . . . . . . . 4 . . . . . . . . 3 . . . Authchips . | . . . . . . . . . . . . . . . . . . . . . . . . . . . . . . . . . . Time 517 | . . . . . . . . . . . . . . . . . . . . . 421 . . . . . . . . 96 . . . Total Part Build Rating 47 | . . . . . . . . . . . . . . . . . . . . . 24 . . . . . . . . 23 . . . Parts Repaired . | . . . . . . . . . . . . . . . . . . . . . . . . . . . . . . . . . . Time . | . . . . . . . . . . . . . . . . . . . . . . . . . . . . . . . . . . Parts Recycled . | . . . . . . . . . . . . . . . . . . . . . . . . . . . . . . . . . . Recycled Matter . | . . . . . . . . . . . . . . . . . . . . . . . . . . . . . . . . . . Retrieved Matter . | . . . . . . . . . . . . . . . . . . . . . . . . . . . . . . . . . . Retrieved Components . | . . . . . . . . . . . . . . . . . . . . . . . . . . . . . . . . . . Parts Scanalyzed 2 | . . . . . . . . . . . . . . . . . . . . . . . . . . . 2 . . . . . . Part Schematics Acquired 2 | . . . . . . . . . . . . . . . . . . . . . . . . . . . 2 . . . . . . Parts Damaged 1 | . . . . . . . . . . . . . . . . . . . . . . . . . . . 1 . . . . . . Bothacking | -11 -10 -10 -9 -9 -9 -8 -8 -7 -6 -6 -6 -6 -6 -6 -6 -5 -5 -5 -5 -4 -4 -4 -4 -4 -3 -3 -3 -3 -2 -2 -1 -1 -1 ------------ Run | Scr Mat Min Mat Min Exi Min Mat Fac Fac Was Fac Ext Cet Arc Hub Fac Upp Upp Zhi Pro Fac Upp Upp War Pro Res Qua Sec Res Tes Acc Com Ac0 Used RIF Installer . | . . . . . . . . . . . . . . . . . . . . . . . . . . . . . . . . . . Robots Hacked 3 | . . . . . . . . . . . . . . . . . . . . . . . . . . . . . . . . 1 2 Non-combat . | . . . . . . . . . . . . . . . . . . . . . . . . . . . . . . . . . . Combat 3 | . . . . . . . . . . . . . . . . . . . . . . . . . . . . . . . . 1 2 Robot Hacks Applied 3 | . . . . . . . . . . . . . . . . . . . . . . . . . . . . . . . . 1 2 parse_system 3 | . . . . . . . . . . . . . . . . . . . . . . . . . . . . . . . . 1 2 Relay Couplers Released 4 | . . . . . . . . 2 . . . . . . . . . . . . . . . . . . . 2 . . . . . Programmers 4 | . . . . . . . . 2 . . . . . . . . . . . . . . . . . . . 2 . . . . . Fabnet Peak Effective % . | . . . . . . . . . . . . . . . . . . . . . . . . . . . . . . . . . . Robots Rewired . | . . . . . . . . . . . . . . . . . . . . . . . . . . . . . . . . . . Allies Hacked . | . . . . . . . . . . . . . . . . . . . . . . . . . . . . . . . . . . Hacks Repelled . | . . . . . . . . . . . . . . . . . . . . . . . . . . . . . . . . . . Allies | -11 -10 -10 -9 -9 -9 -8 -8 -7 -6 -6 -6 -6 -6 -6 -6 -5 -5 -5 -5 -4 -4 -4 -4 -4 -3 -3 -3 -3 -2 -2 -1 -1 -1 -------- Run | Scr Mat Min Mat Min Exi Min Mat Fac Fac Was Fac Ext Cet Arc Hub Fac Upp Upp Zhi Pro Fac Upp Upp War Pro Res Qua Sec Res Tes Acc Com Ac0 Total Allies 27 | . . 1 . . . . . . . . 1 8 5 . 1 1 . . . . 1 . . . . 1 . 1 . . 3 4 . Largest Group 9 | . . 1 1 . . . . . . . 1 6 9 9 7 1 . . . . 1 1 . . . 1 1 1 . . 3 1 . Highest-Rated Group 713 | . . 31 31 . . . . . . . 26 305 713 713 545 26 . . . . 10 10 . . . 45 45 10 . . 374 26 . Highest-Rated Ally 159 | . . 31 31 . . . . . . . 26 159 159 143 96 26 . . . . 10 10 . . . 45 45 10 . . 131 26 . Total Orders . | . . . . . . . . . . . . . . . . . . . . . . . . . . . . . . . . . . Ally Attacks 173 | . . . 7 . . . . . . . . 33 41 12 51 . . . . . . . . . . . . . . . 27 2 . Total Damage 4780 | . . . 83 . . . . . . . . 479 1166 330 2099 . . . . . . . . . . . . . . . 623 . . Kills 32 | . . . 2 . . . . . . . . 3 8 2 13 . . . . . . . . . . . . . . . 4 . . Allies Corrupted 1 | . . . . . . . . . . . . . 1 . . . . . . . . . . . . . . . . . . . . Allies Melted . | . . . . . . . . . . . . . . . . . . . . . . . . . . . . . . . . . . Intel | -11 -10 -10 -9 -9 -9 -8 -8 -7 -6 -6 -6 -6 -6 -6 -6 -5 -5 -5 -5 -4 -4 -4 -4 -4 -3 -3 -3 -3 -2 -2 -1 -1 -1 ------- Run | Scr Mat Min Mat Min Exi Min Mat Fac Fac Was Fac Ext Cet Arc Hub Fac Upp Upp Zhi Pro Fac Upp Upp War Pro Res Qua Sec Res Tes Acc Com Ac0 Robot Analysis Total 4 | . . . . . . . . . . . . . . . . . . . 4 . . . . . . . . . . . . . . Derelict Logs Recovered 4 | . . 1 . . . . . . . . . . . . . . . . . 1 . . 2 . . . . . . . . . . Drone Launches . | . . . . . . . . . . . . . . . . . . . . . . . . . . . . . . . . . . Drone Recoveries . | . . . . . . . . . . . . . . . . . . . . . . . . . . . . . . . . . . Exploration | -11 -10 -10 -9 -9 -9 -8 -8 -7 -6 -6 -6 -6 -6 -6 -6 -5 -5 -5 -5 -4 -4 -4 -4 -4 -3 -3 -3 -3 -2 -2 -1 -1 -1 ------------- Run | Scr Mat Min Mat Min Exi Min Mat Fac Fac Was Fac Ext Cet Arc Hub Fac Upp Upp Zhi Pro Fac Upp Upp War Pro Res Qua Sec Res Tes Acc Com Ac0 Turns Passed 15929 | 253 355 546 330 362 631 146 268 1159 54 32 663 935 473 192 794 349 180 111 125 130 576 125 121 388 68 124 675 1313 217 740 498 1386 1610 Spaces Moved 22228 | 112 218 412 239 283 390 82 202 736 86 64 986 1098 314 201 1110 840 334 335 197 380 645 344 231 960 241 275 1125 2008 646 1377 639 1464 3654 Core 6 | 6 . . . . . . . . . . . . . . . . . . . . . . . . . . . . . . . . . Treads . | . . . . . . . . . . . . . . . . . . . . . . . . . . . . . . . . . . Legs 2652 | 106 218 412 239 283 390 82 202 720 . . . . . . . . . . . . . . . . . . . . . . . . . Wheels . | . . . . . . . . . . . . . . . . . . . . . . . . . . . . . . . . . . Hover 19570 | . . . . . . . . 16 86 64 986 1098 314 201 1110 840 334 335 197 380 645 344 231 960 241 275 1125 2008 646 1377 639 1464 3654 Flight . | . . . . . . . . . . . . . . . . . . . . . . . . . . . . . . . . . . Fastest Speed 20 | 50 120 120 120 120 120 120 120 48 48 48 38 38 38 34 34 27 27 27 23 23 20 20 20 22 22 22 22 25 20 20 20 20 20 Average Speed 37 | 116 120 120 120 120 120 120 120 120 48 48 45 38 38 35 34 28 27 27 25 23 22 20 23 22 22 22 23 25 21 23 28 20 20 Slowest Speed 250 | 120 120 120 120 120 120 120 120 190 48 48 102 38 38 38 34 34 27 27 27 23 23 20 82 22 22 22 25 92 25 250 124 95 20 Overloaded Moves . | . . . . . . . . . . . . . . . . . . . . . . . . . . . . . . . . . . Propulsion Burnouts . | . . . . . . . . . . . . . . . . . . . . . . . . . . . . . . . . . . Robots Hopped . | . . . . . . . . . . . . . . . . . . . . . . . . . . . . . . . . . . Cave-ins Triggered 1 | . . . . . . . . . . . . . . . . . . . . . . . . . . . . . . . . 1 . Teleports 1 | . . . . . . . . . . . . . . . . . . . . . . . . . . . . . . . . 1 . Exploration Rate (%) 53 | 4 50 86 31 52 89 30 23 26 2 80 28 96 81 92 91 27 58 47 62 65 15 53 45 95 46 9 93 79 24 95 16 49 95 Regions Visited 33 Branch Regions 21 Pre-discovered Areas 4 | . . . . . . . . . . . . . . . . . . . 3 . . . 1 . . . . . . . . . . Known Exits Taken 31 | 1 1 1 1 1 1 1 1 1 . . 1 1 1 1 1 1 1 1 1 1 1 1 1 1 1 1 1 1 1 1 1 1 . Unknown Exits Taken . | . . . . . . . . . . . . . . . . . . . . . . . . . . . . . . . . . . Scrap Searched 11 | . . . . . . . . . . . . . . . . . 1 1 . 5 . 2 1 . 1 . . . . . . . . Spaces Dug 17 | . . . . . . . . . . . . . . . 2 1 . . . 1 1 . . . . . . 1 . 7 . 2 2 Terrain Destroyed 762 | . . . . . . . . . . . . 7 8 11 647 3 . 1 . 4 3 . . . . . 2 1 . 7 . 62 6 Melee 12 | . . . . . . . . . . . . . . . . . . . . . . . . . . . . 1 . 7 . 2 2 Projectile 56 | . . . . . . . . . . . . 7 8 11 13 3 . 1 . 4 3 . . . . . 2 . . . . . 4 AOE 694 | . . . . . . . . . . . . . . . 634 . . . . . . . . . . . . . . . . 60 . Terrain Rammed . | . . . . . . . . . . . . . . . . . . . . . . . . . . . . . . . . . . Walls Destroyed . | . . . . . . . . . . . . . . . . . . . . . . . . . . . . . . . . . . Machines Disabled . | . . . . . . . . . . . . . . . . . . . . . . . . . . . . . . . . . . Actions | -11 -10 -10 -9 -9 -9 -8 -8 -7 -6 -6 -6 -6 -6 -6 -6 -5 -5 -5 -5 -4 -4 -4 -4 -4 -3 -3 -3 -3 -2 -2 -1 -1 -1 --------- Run | Scr Mat Min Mat Min Exi Min Mat Fac Fac Was Fac Ext Cet Arc Hub Fac Upp Upp Zhi Pro Fac Upp Upp War Pro Res Qua Sec Res Tes Acc Com Ac0 Total 27285 | 198 271 445 262 294 553 100 222 886 100 64 1114 1511 603 263 1308 900 383 345 256 402 1027 383 276 1136 245 322 1292 2549 699 1654 777 2320 4125 Wait 2610 | 47 5 1 1 . 160 . . 20 . . 31 274 234 29 26 4 9 1 5 4 337 28 29 158 . 31 38 284 35 147 31 620 21 Move 22196 | 111 217 411 238 282 389 81 201 735 86 63 985 1097 313 200 1109 839 333 334 196 379 644 343 230 959 240 274 1124 2007 645 1376 638 1463 3654 Hop . | . . . . . . . . . . . . . . . . . . . . . . . . . . . . . . . . . . Pick Up 113 | . 1 2 2 1 . . 1 5 . . . 7 4 1 7 2 3 2 4 2 3 1 . 1 . . 4 20 1 4 7 8 20 Fast Attach 189 | 7 1 1 3 1 1 . 1 18 . 1 12 6 5 2 7 7 3 1 9 2 9 1 3 5 . 2 9 28 3 20 4 7 10 Attach 42 | . . 2 . . 1 . . . . . 2 1 . . 2 2 . . . . . . . 2 . 2 3 10 . . 2 3 10 Detach 54 | . . 1 . . 1 . . . . . 5 3 . . 3 5 . . . . . . . 3 . 2 6 8 2 2 2 1 10 Swap 84 | . 1 . 1 . . . 3 5 . . 4 1 . 1 . 1 . . 1 . 1 . . 1 . 1 4 10 1 9 5 22 12 Drop 260 | . . 3 1 1 1 . 1 22 2 . 8 13 7 3 16 6 5 3 13 3 13 2 2 6 . 3 12 36 4 20 6 16 32 Fire 963 | 33 38 11 8 5 . 13 2 52 . . 31 40 24 20 74 16 14 4 26 7 16 5 6 1 3 5 80 82 7 34 51 38 217 Melee 112 | . . . . . . . . . . . . . . . . . . . . . . . . . . . 2 8 . 13 6 70 13 Ram . | . . . . . . . . . . . . . . . . . . . . . . . . . . . . . . . . . . Kick 10 | . 8 . . . . . . 2 . . . . . . . . . . . . . . . . . . . . . . . . . Crush . | . . . . . . . . . . . . . . . . . . . . . . . . . . . . . . . . . . Escape Stasis 37 | . . . . . . . . . . . . 37 . . . . . . . . . . . . . . . . . . . . . Rewire 5 | . . . . . . . . 1 . . . . . . . . . . . . . . . . . . . . . . . 4 . Trap 47 | . . 4 . . . . 13 . . . . . . . . . . . . . . . . . . . . . . . . 30 . Miscellaneous 563 | . . 9 8 4 . 6 . 26 12 . 36 32 16 7 64 18 16 . 2 5 4 3 6 . 2 2 10 56 1 29 25 38 126 Route ------- -11/Scrapyard -10/Materials (discovered 2 exits: *Min x2) -10/Mines (discovered 2 exits: *Mat x2) -9/Materials (discovered 2 exits: *Mat / *Min) -9/Mines (discovered 2 exits: Mat / *Exi) -9/Exiles (discovered 2 exits: *Min x2) -8/Mines -8/Materials (discovered 3 exits: *Fac x3) -7/Factory -6/Factory (discovered 4 exits: Low x2 / Ext x2) -6/Waste -6/Factory (discovered 4 exits: Low x2 / *Ext x2) -6/Extension (discovered 3 exits: *Fac x2 / *Cet) -6/Cetus (discovered 2 exits: *Fac / *Arc) -6/Archives (discovered 3 exits: *Fac / *Hub x2) -6/Hub_04(d) (discovered 4 exits: *Fac x4) -5/Factory (discovered 6 exits: Fac x4 / *Upp x2) -5/Upper Caves -5/Upper Caves -5/Zhirov -4/Proximity Caves -4/Factory (discovered 6 exits: *Res x4 / *Upp x2) -4/Upper Caves -4/Upper Caves -4/Warlord -3/Proximity Caves -3/Research (discovered 6 exits: Res x3 / Arm / *Qua x2) -3/Quarantine (discovered 2 exits: Res / *Sec) -3/Section 7 -2/Research (discovered 2 exits: *Tes x2) -2/Testing -1/Access (discovered 2 exits: Sur / *Com) -1/Command (discovered 3 exits: *Sur x2 / *Ac0) -1/Access_0 Subspace History --------- Turn | Location | Event 1 | -11/Scrapyard | Upgraded with Propulsion slot (x1) 1 | -11/Scrapyard | Upgraded with Utility slot (x2) 8 | -11/Scrapyard | Identified exit to Materials 8 | -11/Scrapyard | Discovered exit to Materials (range 16) 254 | -11/Scrapyard | Entered Materials 271 | -10/Materials | Identified exit to Mines 303 | -10/Materials | Build established: Hacker-Mutant 609 | -10/Materials | Entered Mines 713 | -10/Mines | Identified exit to Materials 713 | -10/Mines | Discovered exit to Materials (range 13) 769 | -10/Mines | A weapon hastily lodged in a ceiling crevice suddenly fell to the ground 784 | -10/Mines | Discovered exit to Materials (range 3) 787 | -10/Mines | Reached level 2 792 | -10/Mines | Upgraded with Weapon slot (x2) 955 | -10/Mines | Learned Materials non-interactive machine intel 981 | -10/Mines | Found a hidden stash of uninstalled traps 1088 | -10/Mines | Build established: Hacker-Skirmisher 1147 | -10/Mines | Received a Mining Laser from a helpful Derelict 1155 | -10/Mines | Entered Materials 1155 | -9/Materials | Accompanied by 1 ally 1156 | -9/Materials | Loaded intel: 41 non-interactive machine locations 1157 | -9/Materials | Reached level 3 1160 | -9/Materials | Upgraded with Propulsion slot (x1) 1229 | -9/Materials | Reached level 4 1325 | -9/Materials | Upgraded with Power slot (x1) 1405 | -9/Materials | Identified exit to Materials 1405 | -9/Materials | Discovered exit to Materials (range 8) 1474 | -9/Materials | Identified exit to Mines 1474 | -9/Materials | Discovered exit to Mines (range 9) 1485 | -9/Materials | Entered Mines 1504 | -9/Mines | Received a Rocket Launcher from a helpful Derelict 1602 | -9/Mines | Identified exit to Exiles 1602 | -9/Mines | Discovered exit to Exiles (range 8) 1683 | -9/Mines | Discovered exit to Materials (range 14) 1841 | -9/Mines | Deemed a non-threat by the Exiles lab entrance 1847 | -9/Mines | Entered Exiles 1849 | -9/Exiles | Reached level 5 1863 | -9/Exiles | Identified exit to Mines 1863 | -9/Exiles | Discovered exit to Mines (range 16) 1877 | -9/Exiles | Met 8R-AWN 1897 | -9/Exiles | Met EX-HEX 1930 | -9/Exiles | Met EX-BIN 2186 | -9/Exiles | Met EX-DEC 2253 | -9/Exiles | Visited The Gauntlet 2467 | -9/Exiles | Discovered exit to Mines (range 11) 2478 | -9/Exiles | Entered Mines 2487 | -8/Mines | Upgraded with Utility slot (x1) 2539 | -8/Mines | Reached level 6 2606 | -8/Mines | Discovered exit to Materials (range 12) 2624 | -8/Mines | Entered Materials 2626 | -8/Materials | Reached level 7 2651 | -8/Materials | Identified exit to Factory 2892 | -8/Materials | Entered Factory 2894 | -7/Factory | Reached level 8 2894 | -7/Factory | Reached level 9 2958 | -7/Factory | Upgraded with Power slot (x1) 2958 | -7/Factory | Upgraded with Propulsion slot (x1) 3075 | -7/Factory | Reached level 10 3315 | -7/Factory | Upgraded with Weapon slot (x1) 3574 | -7/Factory | Reached level 11 3626 | -7/Factory | Cargo convoy interrupted 3629 | -7/Factory | Garrison activated, responded to threat 3977 | -7/Factory | Upgraded with Utility slot (x1) 3991 | -7/Factory | Identified exit to Factory 3991 | -7/Factory | Discovered exit to Factory (range 17) 3997 | -7/Factory | Core integrity fell below 50% 4051 | -7/Factory | Core integrity fell below 20% 4051 | -7/Factory | Entered another Factory area 4052 | -6/Factory | Core integrity fell below 50% 4052 | -6/Factory | Core integrity fell below 20% 4053 | -6/Factory | Reached level 12 4053 | -6/Factory | Reached level 13 4072 | -6/Factory | Identified exit to Lower Caves 4072 | -6/Factory | Identified exit to Extension 4105 | -6/Factory | Sucked down chute 4105 | -6/Factory | Entered Waste 4117 | -6/Waste | Spotted C-40 Crusher 4118 | -6/Waste | Spotted C-40 Crusher 4120 | -6/Waste | EMP discharged 4124 | -6/Waste | Spotted C-40 Crusher 4126 | -6/Waste | Spotted C-40 Crusher 4128 | -6/Waste | Spotted C-40 Crusher 4129 | -6/Waste | Identified exit to Factory 4129 | -6/Waste | Discovered exit to Factory (range 17) 4137 | -6/Waste | Entered Factory 4181 | -6/Factory | Upgraded with Propulsion slot (x1) 4181 | -6/Factory | Upgraded with Utility slot (x1) 4262 | -6/Factory | Spotted B-75 Beast 4327 | -6/Factory | Build established: Hacker-Scout 4517 | -6/Factory | Reached level 14 4741 | -6/Factory | Upgraded with Propulsion slot (x1) 4800 | -6/Factory | Entered Extension 4802 | -6/Extension | Reached level 15 4816 | -6/Extension | Disrupted transfer network 4900 | -6/Extension | Identified exit to Cetus 5045 | -6/Extension | Build established: Generator-Scout 5119 | -6/Extension | Rescued a captive Derelict 5120 | -6/Extension | Rescued a captive Derelict 5131 | -6/Extension | Spotted B-75 Beast 5174 | -6/Extension | Reached level 16 5188 | -6/Extension | Destroyed B-75 Beast 5210 | -6/Extension | Spotted B-75 Beast 5217 | -6/Extension | Destroyed B-75 Beast 5291 | -6/Extension | Rescued a captive Derelict 5318 | -6/Extension | Rescued a captive Derelict 5337 | -6/Extension | Rescued a captive Derelict 5338 | -6/Extension | Rescued a captive Derelict 5394 | -6/Extension | Rescued A7 5402 | -6/Extension | Rescued a captive Derelict 5403 | -6/Extension | Rescued a captive Derelict 5405 | -6/Extension | Reached level 17 5416 | -6/Extension | Identified exit to Factory 5416 | -6/Extension | Discovered exit to Factory (range 10) 5592 | -6/Extension | Discovered exit to Factory (range 13) 5679 | -6/Extension | Build established: Hacker-Scout 5735 | -6/Extension | Entered Cetus 5735 | -6/Cetus | Accompanied by 6 allies (A7) 5740 | -6/Cetus | Acquired a Cetus Manufacturing Module code from A7 5741 | -6/Cetus | Spotted Cetus Guard 5741 | -6/Cetus | Spotted Cetus Guard 5741 | -6/Cetus | Spotted Cetus Guard 5741 | -6/Cetus | Spotted Cetus Guard 5760 | -6/Cetus | Destroyed Cetus Guard 5764 | -6/Cetus | Allies destroyed Cetus Guard 5767 | -6/Cetus | Destroyed Cetus Guard 5771 | -6/Cetus | Allies destroyed Cetus Guard 5776 | -6/Cetus | Reached level 18 5795 | -6/Cetus | Upgraded with Propulsion slot (x1) 5834 | -6/Cetus | Started Cetus Manufacturing Module 5859 | -6/Cetus | Manufactured an Enhanced Grunt 5884 | -6/Cetus | Manufactured an Enhanced Grunt 5909 | -6/Cetus | Manufactured an Enhanced Grunt 5934 | -6/Cetus | Manufactured an Enhanced Grunt 5959 | -6/Cetus | Manufactured an Enhanced Grunt 6084 | -6/Cetus | Identified exit to Archives 6084 | -6/Cetus | Discovered exit to Archives (range 18) 6105 | -6/Cetus | Spotted Cetus Guard 6105 | -6/Cetus | Spotted Cetus Guard 6106 | -6/Cetus | Spotted Cetus Guard 6109 | -6/Cetus | Spotted Cetus Guard 6110 | -6/Cetus | Destroyed Cetus Guard 6114 | -6/Cetus | Destroyed Cetus Guard 6120 | -6/Cetus | Allies destroyed Cetus Guard 6123 | -6/Cetus | Discovered exit to Factory (range 18) 6124 | -6/Cetus | Destroyed Cetus Guard 6131 | -6/Cetus | Met Revision 17 6131 | -6/Cetus | Destroyed Revision 17 6208 | -6/Cetus | Entered Archives 6208 | -6/Archives | Accompanied by 9 allies (A7) 6219 | -6/Archives | Unable to access archive contents 6220 | -6/Archives | Reached level 19 6225 | -6/Archives | Discovered exit to Factory (range 16) 6256 | -6/Archives | Unable to access archive contents 6256 | -6/Archives | Identified exit to Hub_04(d) 6256 | -6/Archives | Discovered exit to Hub_04(d) (range 18) 6260 | -6/Archives | Unable to access archive contents 6260 | -6/Archives | Discovered exit to Hub_04(d) (range 16) 6359 | -6/Archives | Build established: Scavenger-Scout 6400 | -6/Archives | Entered Hub_04(d) 6400 | -6/Hub_04(d) | Accompanied by 7 allies 6402 | -6/Hub_04(d) | Discovered exit to Factory (range 14) 6505 | -6/Hub_04(d) | Disrupted transfer network 6506 | -6/Hub_04(d) | Discovered exit to Factory (range 5) 6638 | -6/Hub_04(d) | Garrison activated, responded to threat 6641 | -6/Hub_04(d) | Reached level 20 6751 | -6/Hub_04(d) | Discovered exit to Factory (range 19) 6787 | -6/Hub_04(d) | Network Hub disabled 6808 | -6/Hub_04(d) | Spotted Lightning 6808 | -6/Hub_04(d) | Spotted Lightning 6808 | -6/Hub_04(d) | Spotted Lightning 6849 | -6/Hub_04(d) | Network Hub disabled 6874 | -6/Hub_04(d) | Garrison activated, responded to threat 6897 | -6/Hub_04(d) | System corruption reached 10% 6903 | -6/Hub_04(d) | Destroyed Lightning 6924 | -6/Hub_04(d) | Destroyed Lightning 6949 | -6/Hub_04(d) | Destroyed Lightning 6970 | -6/Hub_04(d) | Destroyed 8 combat bots 7016 | -6/Hub_04(d) | Spotted Lightning 7019 | -6/Hub_04(d) | Spotted Lightning 7022 | -6/Hub_04(d) | Spotted Lightning 7024 | -6/Hub_04(d) | Discovered exit to Factory (range 11) 7079 | -6/Hub_04(d) | Destroyed Lightning 7087 | -6/Hub_04(d) | Destroyed Lightning 7100 | -6/Hub_04(d) | First assault squad dispatched 7101 | -6/Hub_04(d) | Destroyed Lightning 7125 | -6/Hub_04(d) | Network Hub disabled 7174 | -6/Hub_04(d) | Network Hub disabled 7174 | -6/Hub_04(d) | Spotted Lightning 7177 | -6/Hub_04(d) | Spotted Lightning 7188 | -6/Hub_04(d) | Spotted Lightning 7194 | -6/Hub_04(d) | Entered Factory 7196 | -5/Factory | Reached level 21 7202 | -5/Factory | Upgraded with Propulsion slot (x1) 7319 | -5/Factory | Identified exit to Factory 7473 | -5/Factory | Identified exit to Upper Caves 7543 | -5/Factory | Entered Upper Caves 7545 | -5/Upper Caves | Reached level 22 7588 | -5/Upper Caves | Spotted B-75 Beast 7600 | -5/Upper Caves | Destroyed B-75 Beast 7620 | -5/Upper Caves | Attracted the attention of an 0b10 checkpoint 7654 | -5/Upper Caves | Identified exit to Upper Caves 7654 | -5/Upper Caves | Discovered exit to Upper Caves (range 8) 7712 | -5/Upper Caves | Found Imp. Powered Armor 7723 | -5/Upper Caves | Entered another Upper Caves area 7824 | -5/Upper Caves | Identified exit to Zhirov 7824 | -5/Upper Caves | Discovered exit to Zhirov (range 13) 7834 | -5/Upper Caves | Entered Zhirov 7834 | -5/Zhirov | Identified exit to Proximity Caves 7834 | -5/Zhirov | Discovered exit to Proximity Caves (range 3) 7839 | -5/Zhirov | Met Zhirov 7845 | -5/Zhirov | Learned location of Quarantine (-3) 7845 | -5/Zhirov | Learned location of Testing (-2) 7845 | -5/Zhirov | Learned location of Command (-1) 7849 | -5/Zhirov | Zhirov requested help retrieving the SGEMP Prototype 7854 | -5/Zhirov | Found Alien Artifact 7854 | -5/Zhirov | Identified Integrated Reactor 7854 | -5/Zhirov | Installed Integrated Reactor, increased core energy generation (+10) 7865 | -5/Zhirov | Found Alien Artifact 7959 | -5/Zhirov | Entered Proximity Caves 7961 | -4/Proximity Caves | Reached level 23 7962 | -4/Proximity Caves | Upgraded with Utility slot (x1) 7967 | -4/Proximity Caves | Learned location of 1 exit from Research 8041 | -4/Proximity Caves | Spotted B-86 Titan 8088 | -4/Proximity Caves | Discovered exit to Factory (range 8) 8089 | -4/Proximity Caves | Entered Factory 8091 | -4/Factory | Reached level 24 8101 | -4/Factory | Identified exit to Upper Caves 8101 | -4/Factory | Identified exit to Research 8114 | -4/Factory | Garrison activated, responded to threat 8268 | -4/Factory | Fabricated Hvy. Gatling Laser (x1) 8355 | -4/Factory | Fabricated Hvy. Gatling Laser (x1) 8415 | -4/Factory | Build established: Hacker-Scout 8442 | -4/Factory | Fabricated Hvy. Gatling Laser (x1) 8529 | -4/Factory | Fabricated Hvy. Gatling Laser (x1) 8665 | -4/Factory | Entered Upper Caves 8665 | -4/Upper Caves | Accompanied by 1 ally 8760 | -4/Upper Caves | Identified exit to Upper Caves 8760 | -4/Upper Caves | Discovered exit to Upper Caves (range 20) 8790 | -4/Upper Caves | Entered another Upper Caves area 8792 | -4/Upper Caves | Reached level 25 8792 | -4/Upper Caves | Upgraded with Power slot (x1) 8799 | -4/Upper Caves | Encountered a Warlord checkpoint 8852 | -4/Upper Caves | Learned 12 Research zone layouts 8909 | -4/Upper Caves | Identified exit to Warlord 8909 | -4/Upper Caves | Discovered exit to Warlord (range 10) 8911 | -4/Upper Caves | Entered Warlord 8990 | -4/Warlord | Met Warlord 9015 | -4/Warlord | Warlord's base attacked by MAIN.C 9042 | -4/Warlord | Found Prototype Energy Gun 9043 | -4/Warlord | Identified Vortex Rifle 9071 | -4/Warlord | Found Prototype Reactor 9071 | -4/Warlord | Identified Vortex Chain Reactor 9080 | -4/Warlord | Found Prototype Device 9080 | -4/Warlord | Identified Exp. Phase Shifter 9135 | -4/Warlord | Opened side exit 9186 | -4/Warlord | Identified exit to Proximity Caves 9186 | -4/Warlord | Discovered exit to Proximity Caves (range 18) 9299 | -4/Warlord | Entered Proximity Caves 9301 | -3/Proximity Caves | Reached level 26 9364 | -3/Proximity Caves | Discovered exit to Research (range 8) 9367 | -3/Proximity Caves | Entered Research 9368 | -3/Research | Identified exit to Research 9369 | -3/Research | Reached level 27 9423 | -3/Research | Identified exit to Armory 9423 | -3/Research | Identified exit to Quarantine 9440 | -3/Research | Found Prototype Device 9440 | -3/Research | Identified Imp. Particle Accelerator 9491 | -3/Research | Entered Quarantine 9491 | -3/Quarantine | Accompanied by 1 ally 9537 | -3/Quarantine | Found Enh. Force Lance 9547 | -3/Quarantine | Found Alien Artifact 9547 | -3/Quarantine | Identified Terrabomb 9547 | -3/Quarantine | Used Terrabomb 9592 | -3/Quarantine | Reached level 28 9624 | -3/Quarantine | Identified Transdimensional Reconstructor 9711 | -3/Quarantine | Found Alien Artifact 9729 | -3/Quarantine | Identified Subatomic Replicator 9842 | -3/Quarantine | Spotted Fortress 10165 | -3/Quarantine | Identified exit to Section 7 10165 | -3/Quarantine | Discovered exit to Section 7 (range 6) 10166 | -3/Quarantine | Entered Section 7 10306 | -3/Section 7 | Found Alien Artifact 10352 | -3/Section 7 | Spotted S7 Guard 10405 | -3/Section 7 | Reached level 29 10443 | -3/Section 7 | Destroyed 8 combat bots 10454 | -3/Section 7 | Spotted Alpha 7 10455 | -3/Section 7 | Spotted Alpha 7 10476 | -3/Section 7 | Used Subatomic Replicator to create Alien Artifact 10478 | -3/Section 7 | Identified Supercharged Integrated Reactor 10478 | -3/Section 7 | Installed Supercharged Integrated Reactor, increased core energy generation (+15) 10512 | -3/Section 7 | Spotted B-86 Titan 10517 | -3/Section 7 | Discovered exit to Research (range 11) 10522 | -3/Section 7 | Destroyed B-86 Titan 10535 | -3/Section 7 | Upgraded with Utility slot (x1) 10558 | -3/Section 7 | Identified Integrity Redistributor 10589 | -3/Section 7 | Found Alien Artifact 10608 | -3/Section 7 | Identified Integrated Mediator 10609 | -3/Section 7 | Installed Integrated Mediator, increased core attachment efficiency. 10655 | -3/Section 7 | Found Prototype Device 10655 | -3/Section 7 | Identified Exp. Thermal Shield 10781 | -3/Section 7 | Scanned by Researcher 10782 | -3/Section 7 | Intercept squad dispatched 10788 | -3/Section 7 | Found Alien Artifact 10789 | -3/Section 7 | Build established: Generator-Scout 10799 | -3/Section 7 | Spotted Tracker 10808 | -3/Section 7 | Destroyed Tracker 10836 | -3/Section 7 | Spotted Combat Programmer 10842 | -3/Section 7 | Destroyed Combat Programmer 10950 | -3/Section 7 | Spotted S7 Guard 10976 | -3/Section 7 | Identified Core Reset Matrix 11014 | -3/Section 7 | Intercept squad dispatched 11015 | -3/Section 7 | Spotted Tracker 11017 | -3/Section 7 | Spotted Tracker 11019 | -3/Section 7 | Destroyed Tracker 11020 | -3/Section 7 | Spotted Combat Programmer 11021 | -3/Section 7 | Spotted Combat Programmer 11027 | -3/Section 7 | Destroyed Combat Programmer 11031 | -3/Section 7 | Destroyed Combat Programmer 11039 | -3/Section 7 | Destroyed Tracker 11067 | -3/Section 7 | Destroyed 9 combat bots 11117 | -3/Section 7 | Spotted S7 Guard 11129 | -3/Section 7 | Destroyed Alpha 7 11154 | -3/Section 7 | Destroyed Alpha 7 11221 | -3/Section 7 | Destroyed S7 Guard 11230 | -3/Section 7 | Found Alien Artifact 11230 | -3/Section 7 | Identified Navigation Efficiency Matrix 11230 | -3/Section 7 | Installed Navigation Efficiency Matrix, process failed with unexpected side effects 11297 | -3/Section 7 | Spotted B-99 Colossus 11310 | -3/Section 7 | Found Integrated Reactor 11310 | -3/Section 7 | Installed Integrated Reactor, increased core energy generation (+10) 11320 | -3/Section 7 | Found Alien Artifact 11320 | -3/Section 7 | Identified LRC Matter Compressor 11320 | -3/Section 7 | Installed LRC Matter Compressor, increased matter storage capacity (+125) 11332 | -3/Section 7 | Found Integrated Reactor 11332 | -3/Section 7 | Installed Integrated Reactor, increased core energy generation (+10) 11334 | -3/Section 7 | Found Integrated Reactor 11334 | -3/Section 7 | Installed Integrated Reactor, increased core energy generation (+10) 11336 | -3/Section 7 | Found Integrated Reactor 11336 | -3/Section 7 | Installed Integrated Reactor, increased core energy generation (+10) 11408 | -3/Section 7 | Found Transdimensional Reconstructor 11414 | -3/Section 7 | Found Terrabomb 11455 | -3/Section 7 | Spotted Executioner 11455 | -3/Section 7 | Spotted Executioner 11479 | -3/Section 7 | Entered Research 11479 | -2/Research | Warlord forces began assault on 0b10 11481 | -2/Research | Reached level 30 11533 | -2/Research | Identified exit to Testing 11589 | -2/Research | Research machine network offline 11671 | -2/Research | Reached level 31 11686 | -2/Research | Met up with Warlord 11696 | -2/Research | Entered Testing 11699 | -2/Testing | Upgraded with Utility slot (x1) 11757 | -2/Testing | Fabricated Cmb. Linear Gravjet (x2) 11795 | -2/Testing | Found Prototype Energy Gun 11795 | -2/Testing | Identified Hyp. EM Gauss Rifle 11853 | -2/Testing | Fabricated Thermal Defense Suite (x1) 11859 | -2/Testing | Identified exit to Access 11859 | -2/Testing | Discovered exit to Access (range 10) 11868 | -2/Testing | Found Exp. Thermal Shield 11921 | -2/Testing | Spotted PD-7FHKWOVF8B 11948 | -2/Testing | Found Prototype Device 11949 | -2/Testing | Identified Exp. Transmission Jammer 11996 | -2/Testing | Intercept squad dispatched 12040 | -2/Testing | Spotted Striker 12040 | -2/Testing | Spotted Striker 12045 | -2/Testing | Destroyed Striker 12049 | -2/Testing | Destroyed Striker 12067 | -2/Testing | Spotted Alpha 7 12090 | -2/Testing | Destroyed Alpha 7 12114 | -2/Testing | Stole the SGEMP Prototype 12114 | -2/Testing | Reached level 32 12175 | -2/Testing | Protovariant out of control (PL-1ICDT8CMN1) 12175 | -2/Testing | Unleashed a protovariant (PL-1ICDT8CMN1) 12234 | -2/Testing | Spotted Tracker 12237 | -2/Testing | Destroyed Tracker 12251 | -2/Testing | Intercept squad dispatched 12251 | -2/Testing | Spotted Tracker 12251 | -2/Testing | Spotted Tracker 12252 | -2/Testing | Spotted Tracker 12252 | -2/Testing | Destroyed Tracker 12254 | -2/Testing | Spotted Combat Programmer 12254 | -2/Testing | Spotted Combat Programmer 12255 | -2/Testing | Spotted Combat Programmer 12261 | -2/Testing | Destroyed Tracker 12265 | -2/Testing | Destroyed Combat Programmer 12274 | -2/Testing | Destroyed Combat Programmer 12321 | -2/Testing | Destroyed Tracker 12329 | -2/Testing | Spotted Investigator 12330 | -2/Testing | Destroyed Investigator 12368 | -2/Testing | Destroyed 16 combat bots 12380 | -2/Testing | Found Prototype Processor 12380 | -2/Testing | Identified Exp. Targeting Computer 12436 | -2/Testing | Entered Access 12437 | -1/Access | Loaded intel: 117 machine locations 12437 | -1/Access | Loaded intel: 100 trap records 12437 | -1/Access | Identified exit to Surface 12437 | -1/Access | Discovered exit to Surface (range 239) 12437 | -1/Access | Identified exit to Command 12437 | -1/Access | Discovered exit to Command (range 155) 12437 | -1/Access | Delivered the SGEMP Prototype to Zhirov 12437 | -1/Access | Zhirov transferred Access data 12437 | -1/Access | Reached level 33 12515 | -1/Access | Reached level 34 12562 | -1/Access | Intercept squad dispatched 12565 | -1/Access | Destroyed 9 combat bots 12565 | -1/Access | Spotted Tracker 12566 | -1/Access | Spotted Tracker 12566 | -1/Access | Destroyed Tracker 12575 | -1/Access | Destroyed Tracker 12675 | -1/Access | Found Exp. Signal Interpreter 12705 | -1/Access | Spotted B-99 Colossus 12710 | -1/Access | Destroyed B-99 Colossus 12712 | -1/Access | Zhirov warped through subspace 12731 | -1/Access | Destroyed 9 combat bots 12764 | -1/Access | Spotted B-99 Colossus 12764 | -1/Access | Spotted B-99 Colossus 12769 | -1/Access | Destroyed B-99 Colossus 12792 | -1/Access | Destroyed B-99 Colossus 12810 | -1/Access | Intercept squad dispatched 12818 | -1/Access | Spotted Tracker 12819 | -1/Access | Spotted Tracker 12824 | -1/Access | Destroyed Tracker 12831 | -1/Access | Reached level 35 12831 | -1/Access | Destroyed Tracker 12842 | -1/Access | Spotted Combat Programmer 12848 | -1/Access | Destroyed Combat Programmer 12934 | -1/Access | Entered Command 12935 | -1/Command | Upgraded with Utility slot (x1) 13030 | -1/Command | Phase Generator disabled 13047 | -1/Command | Disengaged cave seal 13047 | -1/Command | Derelicts emerged from the dark tunnel 13057 | -1/Command | Welcomed Warlord to Command 13057 | -1/Command | Reached level 36 13090 | -1/Command | Destroyed 8 combat bots 13093 | -1/Command | Found Antimissile System 13095 | -1/Command | Spotted B-99 Colossus 13101 | -1/Command | Destroyed B-99 Colossus 13165 | -1/Command | Spotted M Guard 13165 | -1/Command | Spotted M Guard 13165 | -1/Command | Spotted Combat Programmer 13165 | -1/Command | Spotted Combat Programmer 13170 | -1/Command | Destroyed Combat Programmer 13176 | -1/Command | Destroyed Combat Programmer 13184 | -1/Command | First assault squad dispatched 13184 | -1/Command | Destroyed M Guard 13199 | -1/Command | Destroyed M Guard 13199 | -1/Command | All MAIN.C guards destroyed 13218 | -1/Command | Warlord commented on Warlord statues 13364 | -1/Command | Crushed by falling debris 13392 | -1/Command | Met MAIN.C 13393 | -1/Command | 0b10 Conduit disabled 13426 | -1/Command | MAIN.C activated Command garrisons 13428 | -1/Command | Discovered exit to Surface (range 24) 13431 | -1/Command | Zhirov used SGEMP to disable MAIN.C 13522 | -1/Command | Discovered exit to Surface (range 29) 13522 | -1/Command | Discovered exit to Surface (range 112) 13522 | -1/Command | Extracted map data and part IDs from MAIN.C's data core 13560 | -1/Command | Found Exp. Weapon Cycler 13562 | -1/Command | Found Exp. System Purifier 14047 | -1/Command | Found Zero-point Reactor 14049 | -1/Command | Found Vortex Chain Reactor 14317 | -1/Command | Warped through subspace to slip node 14317 | -1/Command | Identified exit to Access_0 14317 | -1/Command | Discovered exit to Access_0 (range 5) 14320 | -1/Command | Entered Access_0 14322 | -1/Access_0 | Reached level 37 14324 | -1/Access_0 | Met Architect 14342 | -1/Access_0 | Destroyed A8 14349 | -1/Access_0 | Architect warped through subspace 14397 | -1/Access_0 | Architect warped through subspace 14435 | -1/Access_0 | Architect warped through subspace 14457 | -1/Access_0 | A6 warped into view 14485 | -1/Access_0 | Architect warped through subspace 14503 | -1/Access_0 | Subspace Access Node disabled 14528 | -1/Access_0 | Architect warped through subspace 14559 | -1/Access_0 | Found Prototype Device 14559 | -1/Access_0 | Identified Desublimator 14570 | -1/Access_0 | Architect warped through subspace 14574 | -1/Access_0 | Subspace Access Node disabled 14604 | -1/Access_0 | Architect warped through subspace 14615 | -1/Access_0 | Found Exp. Focal Shield 14636 | -1/Access_0 | Architect warped through subspace 14659 | -1/Access_0 | Subspace Access Node disabled 14676 | -1/Access_0 | Architect warped through subspace 14697 | -1/Access_0 | A5 warped into view 14709 | -1/Access_0 | Architect warped through subspace 14723 | -1/Access_0 | Destroyed A5 14735 | -1/Access_0 | Architect warped through subspace 14762 | -1/Access_0 | Architect warped through subspace 14791 | -1/Access_0 | Architect warped through subspace 14814 | -1/Access_0 | Architect warped through subspace 14832 | -1/Access_0 | Architect warped through subspace 14836 | -1/Access_0 | Architect warped through subspace 14857 | -1/Access_0 | Architect warped through subspace 14882 | -1/Access_0 | A4 warped into view 14888 | -1/Access_0 | Destroyed A4 14905 | -1/Access_0 | Architect warped through subspace 14957 | -1/Access_0 | Architect warped through subspace 14995 | -1/Access_0 | Architect warped through subspace 15005 | -1/Access_0 | Found Imp. Particle Accelerator 15009 | -1/Access_0 | Found Exp. Core Analyzer 15037 | -1/Access_0 | Architect warped through subspace 15078 | -1/Access_0 | Architect warped through subspace 15096 | -1/Access_0 | A3 warped into view 15112 | -1/Access_0 | Destroyed A3 15116 | -1/Access_0 | Architect warped through subspace 15140 | -1/Access_0 | Architect warped through subspace 15177 | -1/Access_0 | Architect warped through subspace 15237 | -1/Access_0 | Destroyed A2 15245 | -1/Access_0 | Architect warped through subspace 15250 | -1/Access_0 | Extracted Singularity Gate Test 138-C access codes from A2's data core 15308 | -1/Access_0 | Architect warped through subspace 15334 | -1/Access_0 | Found Hpw. Transdimensional Reconstructor 15382 | -1/Access_0 | Architect warped through subspace 15397 | -1/Access_0 | Started Test 138-B, establishing a local singularity 15422 | -1/Access_0 | Architect warped through subspace 15453 | -1/Access_0 | Architect warped through subspace 15477 | -1/Access_0 | Architect warped through subspace 15488 | -1/Access_0 | Architect warped through subspace 15499 | -1/Access_0 | Architect warped through subspace 15553 | -1/Access_0 | Architect warped through subspace 15562 | -1/Access_0 | Architect warped through subspace 15581 | -1/Access_0 | Architect warped through subspace 15613 | -1/Access_0 | Architect warped through subspace 15662 | -1/Access_0 | Architect warped through subspace 15698 | -1/Access_0 | Architect warped through subspace 15700 | -1/Access_0 | Found Centrium Greatsword 15734 | -1/Access_0 | Architect warped through subspace 15752 | -1/Access_0 | Architect warped through subspace 15762 | -1/Access_0 | Found Point Singularity Launcher 15768 | -1/Access_0 | Architect warped through subspace 15810 | -1/Access_0 | Architect warped through subspace 15864 | -1/Access_0 | Architect warped through subspace 15916 | -1/Access_0 | Architect warped through subspace 15930 | -1/Access_0 | Started Test 138-B, establishing a local singularity 15930 | -1/Access_0 | Started Test 138-C, cascade imminent 15930 | *** | Destroyed Tau Ceti IV! Last Messages --------------- 15914_ Quantum Shear penetrates Wall. Architect warps through subspace. 15920_ Dropped Protomatter-85. 15924_ Used Protomatter to restore core integrity (+89) 15925_ System corrupted: Energy discharge (-297). 15925_ Used Protomatter to restore part integrity (+23) 15926_ Acquired Protomatter-47. 15928_ Navigation matrix triggers involuntary quantum shift. 15930_ Connecting with Gate Controls... >>Gate Test 138-A Running Singularity Gate diagnostics... All systems nominal. >>Gate Test 138-B Preparing Singularity Gate activation... Stable singularity established. >>Gate Test 138-C Initiating Test 138-C... Applying incomplete calculations.... INSTABILITY DETECTED, CASCADE IMMINENT. [Achievement: Stardust] Map ----- +----------------------------------------------------+ | "" ######??######?###?##?######?#?#### | | ! # ## #?###???#####?#######?###?######### | | "" #### #####?###?#??#############??##?#### | | "" # #####?#?###??###?###?###?#?######### | | ?### #?##?######?######?########?######## | | ##?#### ###?################?#?##?######### | | ???#?### #?# ### #??###############?##?## | | ????##?## ### # ##?#################???# | | ######### ########?############?## | | ??###?### ##?########?#####?###?## | | ######??## ## #### ########?#####?###?##### | | ?#?#???#?# ######## #########?####?###?##### | | ##???##?## #?#""""" """""#?###?########?# # | | ###?####?# #?##"""" """"#######?#??###?## # | | ######?### ####" "#################"" | | ###?#?#?## ###"" ""###??#?######### | | ##??###?## ###"" ""#####?#?#?##?## | | #####??#?# ####" "##?##?#######?## | | ?#?####### ##?#" "##?############# | | ??#??##### ##?#" "######????##?#### | | ##?###?### ##?#" "################## | | #??##?#?## ####" "##########?####?## | | ?#?#?##?## ###"" ""#############?## " | | ?######### #?#"" ""#???######?##??# " | | ##?##??#?# ####" "######?#####?#### " | | ???####### ####"""" @A""########?###?#### # | | ?#?##?#??# #?#""""" """""################# # | | #?######## ######## ##################?### | | ###?#?##?# #####?## ################ | | ?######### ###???## == [[ ################# | | ###### #####?## == [[ ####?############ | | ##?" ####?### ###?############# | | ##"" ##?###### !! == ################# | | ## ######### !! == ############?#### | | ##"" ####### ################### | | ???""# ## ##### ]] !! ################### | | #??#?## ### ]] !! ##?################ | | ?##### ### ################### | | #?#?###### ### ### ################### | | ??######## ## ############################### | | ##?#####?# ## #######?####################### | | ?#?#?##### ### ########################### | | ?########## #### ########################### | | ###?####?############ ########################### | | #?##########?######## ########################### | | ?#?################## ########################### | | ####### ##?#### ############"#####"######## | | #??### ####### ##########"" "" "" ""###### | | ##?### ######## #######" "###### | | ?###### ######## | +----------------------------------------------------+ Best States ------------- Heat Dissipation 175 Energy Generation 175 Energy Capacity 1110 Matter Stores 550 Matter Capacity 550 Sight Range 18 Robot Scan Range 20 Terrain Scan Range 24 Terrain Scan Density 310 Jamming Range 22 Armor Coverage 400 Resistance: KI 65 Resistance: TH 65 Resistance: EX 50 Resistance: EM 35 Resistance: I 35 Resistance: S 35 Resistance: P 35 Point Defense Rating 240 Weapon Cycling 30 Phase Shifting 20 Evasion (%) 81 Targeting Accuracy 8 Core Analysis 8 Matter Filtering 50 Particle Charging 40 Offensive Hacking 35 Defensive Hacking 10 Item Schematics ----------------- Assault Drone Bay | -5/Zhirov | Free Exp. Heat Sink | -5/Zhirov | Free Exp. Optical Array | -5/Zhirov | Free Imp. Arc Thrower | -5/Zhirov | Free Hvy. Gatling Laser | -4/Factory | Hacked Adv. Cloaking Device | -3/Research | Hacked Thermal Defense Suite | -3/Quarantine | Hacked Graphene Brace | -3/Quarantine | Scanalyzed Imp. Shock Absorption System | -3/Quarantine | Scanalyzed Cmb. Linear Gravjet | -3/Quarantine | Hacked Lgt. Quantum Reactor | -3/Section 7 | Hacked Cld. Phase Gun | -3/Section 7 | Archive Adv. Variable Charge Gun | -3/Section 7 | Archive Exp. Terrain Scan Processor | -3/Section 7 | Archive Centrium Heavy Treads | -3/Section 7 | Archive Imp. Lightning Gun | -3/Section 7 | Archive Exp. Signal Interpreter | -3/Section 7 | Archive Helical Railgun | -3/Section 7 | Archive Graviton Cannon | -2/Testing | Archive Exp. Reaction Control System | -2/Testing | Archive Robot Schematics ------------------ B-60 Warrior | -3/Section 7 | Hacked S-43 Plague | -3/Section 7 | Archive K-01 Serf | -3/Section 7 | Archive O-32 Director | -2/Testing | Archive Fabricated ------------ Hvy. Gatling Laser | x1 | -4/Factory Hvy. Gatling Laser | x1 | -4/Factory Hvy. Gatling Laser | x1 | -4/Factory Hvy. Gatling Laser | x1 | -4/Factory Cmb. Linear Gravjet | x2 | -2/Testing Thermal Defense Suite | x1 | -2/Testing Alien Tech Used ----------------- Integrated Reactor Terrabomb Subatomic Replicator Supercharged Integrated Reactor Integrated Mediator Navigation Efficiency Matrix LRC Matter Compressor Transdimensional Reconstructor Achievements -------------- Stardust Challenges ------------ None RPGLIKE | -11 -10 -10 -9 -9 -9 -8 -8 -7 -6 -6 -6 -6 -6 -6 -6 -5 -5 -5 -5 -4 -4 -4 -4 -4 -3 -3 -3 -3 -2 -2 -1 -1 -1 --------- Run | Scr Mat Min Mat Min Exi Min Mat Fac Fac Was Fac Ext Cet Arc Hub Fac Upp Upp Zhi Pro Fac Upp Upp War Pro Res Qua Sec Res Tes Acc Com Ac0 Levels Raised 36 | . . 1 2 . 1 1 1 4 2 . 1 3 1 1 1 1 1 . . 1 1 . 1 . 1 1 1 1 2 1 3 1 1 XP Earned 61410 | 6000 855 1000 3115 850 200 1681 2044 6295 2568 200 1850 4000 1964 553 2368 1773 492 253 220 1415 1739 412 426 338 1311 1646 1368 2461 2083 1897 3712 2763 1558 XP Spent 59955 | 5190 770 1300 2000 1195 . 1100 . 8350 . . 4800 4300 2310 . 2300 2355 . . 875 2000 1500 . 1400 . 1680 . 1500 3000 . 4200 1750 4620 1460 Upgrades 107 | 19 7 2 4 6 . 1 . 11 . . 3 7 2 . 4 2 . . 2 1 5 . 2 . 4 . 1 2 . 6 1 5 10 Power Slot 3 | . . . 1 . . . . 1 . . . . . . . . . . . . . . 1 . . . . . . . . . . Propulsion Slot 7 | 1 . . 1 . . . . 1 . . 2 . 1 . . 1 . . . . . . . . . . . . . . . . . Utility Slot 9 | 2 . . . . . 1 . 1 . . 1 . . . . . . . . 1 . . . . . . . 1 . 1 . 1 . Weapon Slot 3 | . . 2 . . . . . 1 . . . . . . . . . . . . . . . . . . . . . . . . . Core Integrity 12 | . . . . 3 . . . . . . . . . . . 1 . . . . . . . . . . . . . . . . 8 Heat Dissipation 25 | . 7 . . 1 . . . 5 . . . . 1 . 3 . . . . . . . . . 4 . . . . . . 3 1 Energy Generation 1 | . . . . . . . . . . . . . . . . . . . . . . . 1 . . . . . . . . . . Mass Support 4 | . . . 2 . . . . 2 . . . . . . . . . . . . . . . . . . . . . . . . . Inventory Capacity 7 | 3 . . . . . . . . . . . 1 . . 1 . . . . . . . . . . . 1 . . . 1 . . Sight Range 2 | 2 . . . . . . . . . . . . . . . . . . . . . . . . . . . . . . . . . Sensor Range 10 | 9 . . . . . . . . . . . . . . . . . . 1 . . . . . . . . . . . . . . Terrain Scan Density 3 | 2 . . . . . . . . . . . . . . . . . . . . . . . . . . . . . . . . 1 Ranged Accuracy 4 | . . . . 2 . . . . . . . . . . . . . . 1 . . . . . . . . 1 . . . . . Hack Attack % 3 | . . . . . . . . . . . . . . . . . . . . . 3 . . . . . . . . . . . . Hack Defense % 2 | . . . . . . . . . . . . 2 . . . . . . . . . . . . . . . . . . . . . KI Resistance % 3 | . . . . . . . . . . . . . . . . . . . . . 1 . . . . . . . . 2 . . . TH Resistance % 2 | . . . . . . . . . . . . . . . . . . . . . 1 . . . . . . . . 1 . . . EX Resistance % 3 | . . . . . . . . . . . . . . . . . . . . . . . . . . . . . . 2 . 1 . TH Damage % 4 | . . . . . . . . . . . . 4 . . . . . . . . . . . . . . . . . . . . . Protomatter Created 7758 | . . 61 97 14 . 43 . 421 . . 262 802 185 . 479 131 186 58 259 21 212 194 203 . 62 75 46 1330 88 382 675 564 908 Integrity Restored 10107 | . . 179 101 46 . 104 . 424 276 . 775 563 293 119 1232 349 284 . 38 56 15 45 103 . 15 2 154 846 6 535 423 658 2466 Core 7192 | . . 161 28 8 . 76 . 353 276 . 596 340 171 76 966 181 200 . . 29 10 18 29 . 9 1 131 564 6 351 215 474 1923 Parts 2915 | . . 18 73 38 . 28 . 71 . . 179 223 122 43 266 168 84 . 38 27 5 27 74 . 6 1 23 282 . 184 208 184 543 Protomatter Decayed 5291 | . . . 33 . . 7 . 197 . . . 577 132 41 549 . . . 122 . 130 75 . 174 20 73 30 868 489 752 271 556 195 Game ------ Seed SupersonicRiotReconstructor Manual? 0 Play Time 04:58:17 Cumulative 281.4 hours Start 2022.06.28 @ 19:21:51 End 2022.06.29 @ 18:36:00 Sessions 3 Manual Loads 0 Difficulty Explorer Special Mode Winter2019/RPGLIKE Game No. 93 Rogue 0 Adventurer 1 Explorer 92 Win Type 5 Total 19 Types 9/0/4/3/0/1/1/0/1 Lore% 88 Gallery% 88 Achievement% 76 Wizard Run 0 Options --------- ASCII 0 Keyboard 1 Movement Numpad Keybinds 0 Fullscreen 0 Font 16/SmallcapsGlow Map View 76x50 Tactical HUD 1 Map Filters BRIGHTNESS(150) Filters NONE Steam 1 RUN: 09030fb4-d0af-4e5b-84c0-e12e2d21b373